{"text_format":"1","workbook":"xlsx","n_sheets":2,"sheets":["Base","Crit_N_Out"],"not_rendered":{"charts":0,"images":0,"macros":1,"external_links":0,"defined_names":13,"comments":1,"pivot_tables":0},"unopened":[],"bounds":{"document_bytes":16777216,"sheet_cells":100000,"rows_first":2000,"rows_last":500,"rows_between":2000,"halvings":0,"cell_chars":16384,"cell_head_chars":4096},"cells_cut":0,"cells_raw":0,"read":"whole","date_system":"1900"}

{"sheet":"Base","index":0,"n_rows":197,"n_cols":28,"rows_kept":197,"cut":false,"hidden":false,"merged":[]}
[]
[null,"Table1",null,null,null,null,null,null,null,null,null,null,null,null,null,null,null,null,null,null,null,null,null,null,null,"Table5","Table6","Table7"]
[null,"Loc","Desc1","Desc2","Desc3","Desc4","Desc5","Supplier1","Supplier2","Supplier3","Project","Group","Section","SP",null,null,null,null,null,null,null,null,null,null,null,"States","Country","NName"]
[null,"MD","CZE","BRA","SUI","IND","NOR","Smith","Jones","Smith","Pam","GK",61,{"$f":"SUMPRODUCT((1)*(Table1[[#This Row],[Desc1]:[Desc5]]=TRANSPOSE(Table2[[Desc1]:[Desc5]])))*SUMPRODUCT(--(Table1[[#This Row],[Supplier1]:[Supplier3]]=TRANSPOSE(Table2[[Supplier1]:[Supplier3]])))*(Table1[[#This Row],[Loc]]=Table2[Loc])","v":0},null,null,null,null,null,null,null,null,null,null,null,"KS","ARG","Smith"]
[null,"ME","AUS","SUI","POR","AUT","POL","Johnson","Jones","Johnson","Vus","TD",94,{"$f":"SUMPRODUCT((1)*(Table1[[#This Row],[Desc1]:[Desc5]]=TRANSPOSE(Table2[[Desc1]:[Desc5]])))*SUMPRODUCT(--(Table1[[#This Row],[Supplier1]:[Supplier3]]=TRANSPOSE(Table2[[Supplier1]:[Supplier3]])))*(Table1[[#This Row],[Loc]]=Table2[Loc])","v":0},null,null,null,null,null,null,null,null,null,null,null,"KY","AUT","Johnson"]
[null,"MA","EGY","CZE","GRE","AUS","ISR","Jones","Jones","Williams","Fer","KF",20,{"$f":"SUMPRODUCT((1)*(Table1[[#This Row],[Desc1]:[Desc5]]=TRANSPOSE(Table2[[Desc1]:[Desc5]])))*SUMPRODUCT(--(Table1[[#This Row],[Supplier1]:[Supplier3]]=TRANSPOSE(Table2[[Supplier1]:[Supplier3]])))*(Table1[[#This Row],[Loc]]=Table2[Loc])","v":0},null,null,null,null,null,null,null,null,null,null,null,"LA","BEL","Williams"]
[null,"KY","GBR","NOR","GRE","IND","CAN","Jones","Jones","Brown","Lus","RJ",98,{"$f":"SUMPRODUCT((1)*(Table1[[#This Row],[Desc1]:[Desc5]]=TRANSPOSE(Table2[[Desc1]:[Desc5]])))*SUMPRODUCT(--(Table1[[#This Row],[Supplier1]:[Supplier3]]=TRANSPOSE(Table2[[Supplier1]:[Supplier3]])))*(Table1[[#This Row],[Loc]]=Table2[Loc])","v":0},null,null,null,null,null,null,null,null,null,null,null,"ME","BRA","Brown"]
[null,"MA","NOR","INA","RSA","CHN","NED","Jones","Johnson","Brown","Kug","LG",87,{"$f":"SUMPRODUCT((1)*(Table1[[#This Row],[Desc1]:[Desc5]]=TRANSPOSE(Table2[[Desc1]:[Desc5]])))*SUMPRODUCT(--(Table1[[#This Row],[Supplier1]:[Supplier3]]=TRANSPOSE(Table2[[Supplier1]:[Supplier3]])))*(Table1[[#This Row],[Loc]]=Table2[Loc])","v":0},null,null,null,null,null,null,null,null,null,null,null,"MD","CAN","Jones"]
[null,"LA","BRA","BRA","FIN","SWE","IRI","Brown","Brown","Johnson","Kon","BD",68,{"$f":"SUMPRODUCT((1)*(Table1[[#This Row],[Desc1]:[Desc5]]=TRANSPOSE(Table2[[Desc1]:[Desc5]])))*SUMPRODUCT(--(Table1[[#This Row],[Supplier1]:[Supplier3]]=TRANSPOSE(Table2[[Supplier1]:[Supplier3]])))*(Table1[[#This Row],[Loc]]=Table2[Loc])","v":0},null,null,null,null,null,null,null,null,null,null,null,"MA","CHI"]
[null,"KY","ARG","ITA","ITA","FRA","CAN","Johnson","Williams","Williams","Lut","VL",87,{"$f":"SUMPRODUCT((1)*(Table1[[#This Row],[Desc1]:[Desc5]]=TRANSPOSE(Table2[[Desc1]:[Desc5]])))*SUMPRODUCT(--(Table1[[#This Row],[Supplier1]:[Supplier3]]=TRANSPOSE(Table2[[Supplier1]:[Supplier3]])))*(Table1[[#This Row],[Loc]]=Table2[Loc])","v":0},null,null,null,null,null,null,null,null,null,null,null,null,"CZE"]
[null,"MA","POR","CAN","AUT","SUI","GRE","Jones","Williams","Brown","Rut","DG",75,{"$f":"SUMPRODUCT((1)*(Table1[[#This Row],[Desc1]:[Desc5]]=TRANSPOSE(Table2[[Desc1]:[Desc5]])))*SUMPRODUCT(--(Table1[[#This Row],[Supplier1]:[Supplier3]]=TRANSPOSE(Table2[[Supplier1]:[Supplier3]])))*(Table1[[#This Row],[Loc]]=Table2[Loc])","v":0},null,null,null,null,null,null,null,null,null,null,null,null,"FIN"]
[null,"MA","ISR","IND","HUN","SUI","ESP","Williams","Williams","Williams","Nam","LL",24,{"$f":"SUMPRODUCT((1)*(Table1[[#This Row],[Desc1]:[Desc5]]=TRANSPOSE(Table2[[Desc1]:[Desc5]])))*SUMPRODUCT(--(Table1[[#This Row],[Supplier1]:[Supplier3]]=TRANSPOSE(Table2[[Supplier1]:[Supplier3]])))*(Table1[[#This Row],[Loc]]=Table2[Loc])","v":0},null,null,null,null,null,null,null,null,null,null,null,null,"FRA"]
[null,"KS","FRA","AUT","EGY","ESP","INA","Johnson","Johnson","Johnson","Kun","MN",95,{"$f":"SUMPRODUCT((1)*(Table1[[#This Row],[Desc1]:[Desc5]]=TRANSPOSE(Table2[[Desc1]:[Desc5]])))*SUMPRODUCT(--(Table1[[#This Row],[Supplier1]:[Supplier3]]=TRANSPOSE(Table2[[Supplier1]:[Supplier3]])))*(Table1[[#This Row],[Loc]]=Table2[Loc])","v":0},null,null,null,null,null,null,null,null,null,null,null,null,"GBR"]
[null,"KS","HUN","SUI","FRA","ESP","IRL","Williams","Smith","Williams","Sut","LR",62,{"$f":"SUMPRODUCT((1)*(Table1[[#This Row],[Desc1]:[Desc5]]=TRANSPOSE(Table2[[Desc1]:[Desc5]])))*SUMPRODUCT(--(Table1[[#This Row],[Supplier1]:[Supplier3]]=TRANSPOSE(Table2[[Supplier1]:[Supplier3]])))*(Table1[[#This Row],[Loc]]=Table2[Loc])","v":0},null,null,null,null,null,null,null,null,null,null,null,null,"GER"]
[null,"MD","ARG","ARG","CZE","FRA","RSA","Jones","Brown","Jones","Tos","MT",99,{"$f":"SUMPRODUCT((1)*(Table1[[#This Row],[Desc1]:[Desc5]]=TRANSPOSE(Table2[[Desc1]:[Desc5]])))*SUMPRODUCT(--(Table1[[#This Row],[Supplier1]:[Supplier3]]=TRANSPOSE(Table2[[Supplier1]:[Supplier3]])))*(Table1[[#This Row],[Loc]]=Table2[Loc])","v":0},null,null,null,null,null,null,null,null,null,null,null,null,"GRE"]
[null,"KY","DEN","INA","CZE","POL","NOR","Williams","Johnson","Williams","Wos","FL",57,{"$f":"SUMPRODUCT((1)*(Table1[[#This Row],[Desc1]:[Desc5]]=TRANSPOSE(Table2[[Desc1]:[Desc5]])))*SUMPRODUCT(--(Table1[[#This Row],[Supplier1]:[Supplier3]]=TRANSPOSE(Table2[[Supplier1]:[Supplier3]])))*(Table1[[#This Row],[Loc]]=Table2[Loc])","v":0},null,null,null,null,null,null,null,null,null,null,null,null,"HUN"]
[null,"LA","HUN","CZE","SWE","CHI","JPN","Smith","Johnson","Brown","Duh","SR",39,{"$f":"SUMPRODUCT((1)*(Table1[[#This Row],[Desc1]:[Desc5]]=TRANSPOSE(Table2[[Desc1]:[Desc5]])))*SUMPRODUCT(--(Table1[[#This Row],[Supplier1]:[Supplier3]]=TRANSPOSE(Table2[[Supplier1]:[Supplier3]])))*(Table1[[#This Row],[Loc]]=Table2[Loc])","v":2},null,null,null,null,null,null,null,null,null,null,null,null,"INA"]
[null,"KS","GRE","NOR","CAN","EGY","CHI","Johnson","Jones","Johnson","Jib","WV",91,{"$f":"SUMPRODUCT((1)*(Table1[[#This Row],[Desc1]:[Desc5]]=TRANSPOSE(Table2[[Desc1]:[Desc5]])))*SUMPRODUCT(--(Table1[[#This Row],[Supplier1]:[Supplier3]]=TRANSPOSE(Table2[[Supplier1]:[Supplier3]])))*(Table1[[#This Row],[Loc]]=Table2[Loc])","v":0},null,null,null,null,null,null,null,null,null,null,null,null,"IND"]
[null,"ME","ESP","GER","MEX","ITA","SWE","Jones","Williams","Jones","Lug","FL",21,{"$f":"SUMPRODUCT((1)*(Table1[[#This Row],[Desc1]:[Desc5]]=TRANSPOSE(Table2[[Desc1]:[Desc5]])))*SUMPRODUCT(--(Table1[[#This Row],[Supplier1]:[Supplier3]]=TRANSPOSE(Table2[[Supplier1]:[Supplier3]])))*(Table1[[#This Row],[Loc]]=Table2[Loc])","v":0},null,null,null,null,null,null,null,null,null,null,null,null,"IRL"]
[null,"ME","POR","FRA","AUT","SUI","AUS","Smith","Johnson","Brown","Dud","FN",38,{"$f":"SUMPRODUCT((1)*(Table1[[#This Row],[Desc1]:[Desc5]]=TRANSPOSE(Table2[[Desc1]:[Desc5]])))*SUMPRODUCT(--(Table1[[#This Row],[Supplier1]:[Supplier3]]=TRANSPOSE(Table2[[Supplier1]:[Supplier3]])))*(Table1[[#This Row],[Loc]]=Table2[Loc])","v":0},null,null,null,null,null,null,null,null,null,null,null,null,"ISR"]
[null,"KY","INA","POR","ITA","CHN","IRL","Williams","Jones","Jones","Wip","KF",97,{"$f":"SUMPRODUCT((1)*(Table1[[#This Row],[Desc1]:[Desc5]]=TRANSPOSE(Table2[[Desc1]:[Desc5]])))*SUMPRODUCT(--(Table1[[#This Row],[Supplier1]:[Supplier3]]=TRANSPOSE(Table2[[Supplier1]:[Supplier3]])))*(Table1[[#This Row],[Loc]]=Table2[Loc])","v":0},null,null,null,null,null,null,null,null,null,null,null,null,"ITA"]
[null,"LA","FIN","BEL","ISR","SWE","CHI","Jones","Johnson","Johnson","Jes","DK",58,{"$f":"SUMPRODUCT((1)*(Table1[[#This Row],[Desc1]:[Desc5]]=TRANSPOSE(Table2[[Desc1]:[Desc5]])))*SUMPRODUCT(--(Table1[[#This Row],[Supplier1]:[Supplier3]]=TRANSPOSE(Table2[[Supplier1]:[Supplier3]])))*(Table1[[#This Row],[Loc]]=Table2[Loc])","v":0},null,null,null,null,null,null,null,null,null,null,null,null,"MEX"]
[null,"KS","CHN","ISR","GBR","FRA","IRI","Johnson","Jones","Brown","Jus","JM",63,{"$f":"SUMPRODUCT((1)*(Table1[[#This Row],[Desc1]:[Desc5]]=TRANSPOSE(Table2[[Desc1]:[Desc5]])))*SUMPRODUCT(--(Table1[[#This Row],[Supplier1]:[Supplier3]]=TRANSPOSE(Table2[[Supplier1]:[Supplier3]])))*(Table1[[#This Row],[Loc]]=Table2[Loc])","v":0},null,null,null,null,null,null,null,null,null,null,null,null,"NED"]
[null,"ME","CHN","FIN","ARG","ESP","POL","Williams","Johnson","Johnson","Jib","JB",84,{"$f":"SUMPRODUCT((1)*(Table1[[#This Row],[Desc1]:[Desc5]]=TRANSPOSE(Table2[[Desc1]:[Desc5]])))*SUMPRODUCT(--(Table1[[#This Row],[Supplier1]:[Supplier3]]=TRANSPOSE(Table2[[Supplier1]:[Supplier3]])))*(Table1[[#This Row],[Loc]]=Table2[Loc])","v":0},null,null,null,null,null,null,null,null,null,null,null,null,"NOR"]
[null,"MA","POR","RSA","GBR","MEX","GRE","Brown","Jones","Johnson","Lud","BK",22,{"$f":"SUMPRODUCT((1)*(Table1[[#This Row],[Desc1]:[Desc5]]=TRANSPOSE(Table2[[Desc1]:[Desc5]])))*SUMPRODUCT(--(Table1[[#This Row],[Supplier1]:[Supplier3]]=TRANSPOSE(Table2[[Supplier1]:[Supplier3]])))*(Table1[[#This Row],[Loc]]=Table2[Loc])","v":0},null,null,null,null,null,null,null,null,null,null,null,null,"POR"]
[null,"KS","ARG","BRA","CHN","BEL","CHI","Williams","Jones","Johnson","Jic","FP",36,{"$f":"SUMPRODUCT((1)*(Table1[[#This Row],[Desc1]:[Desc5]]=TRANSPOSE(Table2[[Desc1]:[Desc5]])))*SUMPRODUCT(--(Table1[[#This Row],[Supplier1]:[Supplier3]]=TRANSPOSE(Table2[[Supplier1]:[Supplier3]])))*(Table1[[#This Row],[Loc]]=Table2[Loc])","v":0},null,null,null,null,null,null,null,null,null,null,null,null,"RSA"]
[null,"ME","GER","GRE","ARG","POR","NED","Jones","Johnson","Brown","Sid","NN",92,{"$f":"SUMPRODUCT((1)*(Table1[[#This Row],[Desc1]:[Desc5]]=TRANSPOSE(Table2[[Desc1]:[Desc5]])))*SUMPRODUCT(--(Table1[[#This Row],[Supplier1]:[Supplier3]]=TRANSPOSE(Table2[[Supplier1]:[Supplier3]])))*(Table1[[#This Row],[Loc]]=Table2[Loc])","v":0},null,null,null,null,null,null,null,null,null,null,null,null,"SUI"]
[null,"KS","EGY","GRE","AUT","RUS","CAN","Williams","Williams","Brown","Kig","VV",10,{"$f":"SUMPRODUCT((1)*(Table1[[#This Row],[Desc1]:[Desc5]]=TRANSPOSE(Table2[[Desc1]:[Desc5]])))*SUMPRODUCT(--(Table1[[#This Row],[Supplier1]:[Supplier3]]=TRANSPOSE(Table2[[Supplier1]:[Supplier3]])))*(Table1[[#This Row],[Loc]]=Table2[Loc])","v":0}]
[null,"MD","CHN","SUI","INA","CAN","NOR","Brown","Jones","Smith","Bin","LF",97,{"$f":"SUMPRODUCT((1)*(Table1[[#This Row],[Desc1]:[Desc5]]=TRANSPOSE(Table2[[Desc1]:[Desc5]])))*SUMPRODUCT(--(Table1[[#This Row],[Supplier1]:[Supplier3]]=TRANSPOSE(Table2[[Supplier1]:[Supplier3]])))*(Table1[[#This Row],[Loc]]=Table2[Loc])","v":0}]
[null,"MD","RSA","SUI","SWE","CAN","ISL","Smith","Jones","Johnson","Kup","JW",10,{"$f":"SUMPRODUCT((1)*(Table1[[#This Row],[Desc1]:[Desc5]]=TRANSPOSE(Table2[[Desc1]:[Desc5]])))*SUMPRODUCT(--(Table1[[#This Row],[Supplier1]:[Supplier3]]=TRANSPOSE(Table2[[Supplier1]:[Supplier3]])))*(Table1[[#This Row],[Loc]]=Table2[Loc])","v":0}]
[null,"KY","SWE","AUT","EGY","RSA","BEL","Williams","Williams","Jones","Num","SF",44,{"$f":"SUMPRODUCT((1)*(Table1[[#This Row],[Desc1]:[Desc5]]=TRANSPOSE(Table2[[Desc1]:[Desc5]])))*SUMPRODUCT(--(Table1[[#This Row],[Supplier1]:[Supplier3]]=TRANSPOSE(Table2[[Supplier1]:[Supplier3]])))*(Table1[[#This Row],[Loc]]=Table2[Loc])","v":0}]
[null,"MA","GBR","NED","AUT","CHN","MEX","Jones","Smith","Smith","Tas","JD",86,{"$f":"SUMPRODUCT((1)*(Table1[[#This Row],[Desc1]:[Desc5]]=TRANSPOSE(Table2[[Desc1]:[Desc5]])))*SUMPRODUCT(--(Table1[[#This Row],[Supplier1]:[Supplier3]]=TRANSPOSE(Table2[[Supplier1]:[Supplier3]])))*(Table1[[#This Row],[Loc]]=Table2[Loc])","v":0}]
[null,"ME","CAN","HUN","POR","ITA","ISL","Johnson","Brown","Brown","Gab","WF",95,{"$f":"SUMPRODUCT((1)*(Table1[[#This Row],[Desc1]:[Desc5]]=TRANSPOSE(Table2[[Desc1]:[Desc5]])))*SUMPRODUCT(--(Table1[[#This Row],[Supplier1]:[Supplier3]]=TRANSPOSE(Table2[[Supplier1]:[Supplier3]])))*(Table1[[#This Row],[Loc]]=Table2[Loc])","v":0}]
[null,"KS","IRI","GER","ARG","ARG","RUS","Brown","Smith","Johnson","Bep","PR",47,{"$f":"SUMPRODUCT((1)*(Table1[[#This Row],[Desc1]:[Desc5]]=TRANSPOSE(Table2[[Desc1]:[Desc5]])))*SUMPRODUCT(--(Table1[[#This Row],[Supplier1]:[Supplier3]]=TRANSPOSE(Table2[[Supplier1]:[Supplier3]])))*(Table1[[#This Row],[Loc]]=Table2[Loc])","v":0}]
[null,"LA","IRI","NED","MEX","FRA","IRI","Jones","Jones","Jones","Gob","FP",73,{"$f":"SUMPRODUCT((1)*(Table1[[#This Row],[Desc1]:[Desc5]]=TRANSPOSE(Table2[[Desc1]:[Desc5]])))*SUMPRODUCT(--(Table1[[#This Row],[Supplier1]:[Supplier3]]=TRANSPOSE(Table2[[Supplier1]:[Supplier3]])))*(Table1[[#This Row],[Loc]]=Table2[Loc])","v":0}]
[null,"LA","SWE","BEL","POL","NOR","ISR","Johnson","Johnson","Williams","Sin","FS",60,{"$f":"SUMPRODUCT((1)*(Table1[[#This Row],[Desc1]:[Desc5]]=TRANSPOSE(Table2[[Desc1]:[Desc5]])))*SUMPRODUCT(--(Table1[[#This Row],[Supplier1]:[Supplier3]]=TRANSPOSE(Table2[[Supplier1]:[Supplier3]])))*(Table1[[#This Row],[Loc]]=Table2[Loc])","v":0}]
[null,"ME","ARG","ISR","CZE","ARG","BRA","Brown","Jones","Smith","Pec","LP",98,{"$f":"SUMPRODUCT((1)*(Table1[[#This Row],[Desc1]:[Desc5]]=TRANSPOSE(Table2[[Desc1]:[Desc5]])))*SUMPRODUCT(--(Table1[[#This Row],[Supplier1]:[Supplier3]]=TRANSPOSE(Table2[[Supplier1]:[Supplier3]])))*(Table1[[#This Row],[Loc]]=Table2[Loc])","v":0}]
[null,"MA","POL","AUT","INA","ARG","ESP","Smith","Jones","Smith","Suf","RS",14,{"$f":"SUMPRODUCT((1)*(Table1[[#This Row],[Desc1]:[Desc5]]=TRANSPOSE(Table2[[Desc1]:[Desc5]])))*SUMPRODUCT(--(Table1[[#This Row],[Supplier1]:[Supplier3]]=TRANSPOSE(Table2[[Supplier1]:[Supplier3]])))*(Table1[[#This Row],[Loc]]=Table2[Loc])","v":0}]
[null,"LA","IRL","CHI","BEL","RUS","IND","Williams","Jones","Jones","Wus","DG",92,{"$f":"SUMPRODUCT((1)*(Table1[[#This Row],[Desc1]:[Desc5]]=TRANSPOSE(Table2[[Desc1]:[Desc5]])))*SUMPRODUCT(--(Table1[[#This Row],[Supplier1]:[Supplier3]]=TRANSPOSE(Table2[[Supplier1]:[Supplier3]])))*(Table1[[#This Row],[Loc]]=Table2[Loc])","v":0}]
[null,"MA","CZE","GBR","ESP","AUT","GRE","Jones","Brown","Johnson","Wot","KK",90,{"$f":"SUMPRODUCT((1)*(Table1[[#This Row],[Desc1]:[Desc5]]=TRANSPOSE(Table2[[Desc1]:[Desc5]])))*SUMPRODUCT(--(Table1[[#This Row],[Supplier1]:[Supplier3]]=TRANSPOSE(Table2[[Supplier1]:[Supplier3]])))*(Table1[[#This Row],[Loc]]=Table2[Loc])","v":0}]
[null,"ME","NED","SUI","FRA","ITA","GRE","Jones","Smith","Smith","Des","RT",11,{"$f":"SUMPRODUCT((1)*(Table1[[#This Row],[Desc1]:[Desc5]]=TRANSPOSE(Table2[[Desc1]:[Desc5]])))*SUMPRODUCT(--(Table1[[#This Row],[Supplier1]:[Supplier3]]=TRANSPOSE(Table2[[Supplier1]:[Supplier3]])))*(Table1[[#This Row],[Loc]]=Table2[Loc])","v":0}]
[null,"LA","CHN","IRL","CAN","POL","BEL","Jones","Jones","Johnson","Rov","WK",58,{"$f":"SUMPRODUCT((1)*(Table1[[#This Row],[Desc1]:[Desc5]]=TRANSPOSE(Table2[[Desc1]:[Desc5]])))*SUMPRODUCT(--(Table1[[#This Row],[Supplier1]:[Supplier3]]=TRANSPOSE(Table2[[Supplier1]:[Supplier3]])))*(Table1[[#This Row],[Loc]]=Table2[Loc])","v":0}]
[null,"MA","INA","BEL","FRA","RUS","CHN","Smith","Johnson","Smith","Vof","SK",44,{"$f":"SUMPRODUCT((1)*(Table1[[#This Row],[Desc1]:[Desc5]]=TRANSPOSE(Table2[[Desc1]:[Desc5]])))*SUMPRODUCT(--(Table1[[#This Row],[Supplier1]:[Supplier3]]=TRANSPOSE(Table2[[Supplier1]:[Supplier3]])))*(Table1[[#This Row],[Loc]]=Table2[Loc])","v":0}]
[null,"ME","FIN","MEX","ITA","CHI","DEN","Smith","Johnson","Johnson","Han","DW",31,{"$f":"SUMPRODUCT((1)*(Table1[[#This Row],[Desc1]:[Desc5]]=TRANSPOSE(Table2[[Desc1]:[Desc5]])))*SUMPRODUCT(--(Table1[[#This Row],[Supplier1]:[Supplier3]]=TRANSPOSE(Table2[[Supplier1]:[Supplier3]])))*(Table1[[#This Row],[Loc]]=Table2[Loc])","v":0}]
[null,"KS","CZE","IRL","POL","ESP","CZE","Jones","Brown","Brown","Rar","FT",21,{"$f":"SUMPRODUCT((1)*(Table1[[#This Row],[Desc1]:[Desc5]]=TRANSPOSE(Table2[[Desc1]:[Desc5]])))*SUMPRODUCT(--(Table1[[#This Row],[Supplier1]:[Supplier3]]=TRANSPOSE(Table2[[Supplier1]:[Supplier3]])))*(Table1[[#This Row],[Loc]]=Table2[Loc])","v":0}]
[null,"LA","MEX","ISR","RSA","AUS","BRA","Johnson","Brown","Johnson","Hof","NV",69,{"$f":"SUMPRODUCT((1)*(Table1[[#This Row],[Desc1]:[Desc5]]=TRANSPOSE(Table2[[Desc1]:[Desc5]])))*SUMPRODUCT(--(Table1[[#This Row],[Supplier1]:[Supplier3]]=TRANSPOSE(Table2[[Supplier1]:[Supplier3]])))*(Table1[[#This Row],[Loc]]=Table2[Loc])","v":1}]
[null,"KY","SUI","IND","IRI","IND","FIN","Brown","Jones","Smith","Kam","LT",42,{"$f":"SUMPRODUCT((1)*(Table1[[#This Row],[Desc1]:[Desc5]]=TRANSPOSE(Table2[[Desc1]:[Desc5]])))*SUMPRODUCT(--(Table1[[#This Row],[Supplier1]:[Supplier3]]=TRANSPOSE(Table2[[Supplier1]:[Supplier3]])))*(Table1[[#This Row],[Loc]]=Table2[Loc])","v":0}]
[null,"MA","NED","CHI","ITA","RSA","DEN","Smith","Johnson","Jones","Had","PR",48,{"$f":"SUMPRODUCT((1)*(Table1[[#This Row],[Desc1]:[Desc5]]=TRANSPOSE(Table2[[Desc1]:[Desc5]])))*SUMPRODUCT(--(Table1[[#This Row],[Supplier1]:[Supplier3]]=TRANSPOSE(Table2[[Supplier1]:[Supplier3]])))*(Table1[[#This Row],[Loc]]=Table2[Loc])","v":0}]
[null,"ME","RUS","AUS","RSA","MEX","AUS","Smith","Johnson","Brown","Sap","MG",37,{"$f":"SUMPRODUCT((1)*(Table1[[#This Row],[Desc1]:[Desc5]]=TRANSPOSE(Table2[[Desc1]:[Desc5]])))*SUMPRODUCT(--(Table1[[#This Row],[Supplier1]:[Supplier3]]=TRANSPOSE(Table2[[Supplier1]:[Supplier3]])))*(Table1[[#This Row],[Loc]]=Table2[Loc])","v":0}]
[null,"KS","ISL","ITA","IRL","MEX","IRL","Smith","Smith","Smith","Vin","TB",99,{"$f":"SUMPRODUCT((1)*(Table1[[#This Row],[Desc1]:[Desc5]]=TRANSPOSE(Table2[[Desc1]:[Desc5]])))*SUMPRODUCT(--(Table1[[#This Row],[Supplier1]:[Supplier3]]=TRANSPOSE(Table2[[Supplier1]:[Supplier3]])))*(Table1[[#This Row],[Loc]]=Table2[Loc])","v":0}]
[null,"ME","EGY","JPN","NOR","EGY","ISR","Jones","Williams","Williams","Nur","FJ",38,{"$f":"SUMPRODUCT((1)*(Table1[[#This Row],[Desc1]:[Desc5]]=TRANSPOSE(Table2[[Desc1]:[Desc5]])))*SUMPRODUCT(--(Table1[[#This Row],[Supplier1]:[Supplier3]]=TRANSPOSE(Table2[[Supplier1]:[Supplier3]])))*(Table1[[#This Row],[Loc]]=Table2[Loc])","v":0}]
[null,"KY","SWE","GER","ESP","ARG","ISR","Johnson","Jones","Brown","Sir","SH",64,{"$f":"SUMPRODUCT((1)*(Table1[[#This Row],[Desc1]:[Desc5]]=TRANSPOSE(Table2[[Desc1]:[Desc5]])))*SUMPRODUCT(--(Table1[[#This Row],[Supplier1]:[Supplier3]]=TRANSPOSE(Table2[[Supplier1]:[Supplier3]])))*(Table1[[#This Row],[Loc]]=Table2[Loc])","v":0}]
[null,"LA","HUN","SUI","POL","MEX","ISL","Johnson","Smith","Jones","Gis","JV",69,{"$f":"SUMPRODUCT((1)*(Table1[[#This Row],[Desc1]:[Desc5]]=TRANSPOSE(Table2[[Desc1]:[Desc5]])))*SUMPRODUCT(--(Table1[[#This Row],[Supplier1]:[Supplier3]]=TRANSPOSE(Table2[[Supplier1]:[Supplier3]])))*(Table1[[#This Row],[Loc]]=Table2[Loc])","v":1}]
[null,"ME","MEX","SUI","SWE","NED","FRA","Johnson","Smith","Johnson","Pif","JS",81,{"$f":"SUMPRODUCT((1)*(Table1[[#This Row],[Desc1]:[Desc5]]=TRANSPOSE(Table2[[Desc1]:[Desc5]])))*SUMPRODUCT(--(Table1[[#This Row],[Supplier1]:[Supplier3]]=TRANSPOSE(Table2[[Supplier1]:[Supplier3]])))*(Table1[[#This Row],[Loc]]=Table2[Loc])","v":0}]
[null,"KS","CAN","BEL","ARG","SUI","IRI","Johnson","Johnson","Brown","Kuc","PD",52,{"$f":"SUMPRODUCT((1)*(Table1[[#This Row],[Desc1]:[Desc5]]=TRANSPOSE(Table2[[Desc1]:[Desc5]])))*SUMPRODUCT(--(Table1[[#This Row],[Supplier1]:[Supplier3]]=TRANSPOSE(Table2[[Supplier1]:[Supplier3]])))*(Table1[[#This Row],[Loc]]=Table2[Loc])","v":0}]
[null,"KS","IRL","GBR","FIN","DEN","ITA","Williams","Smith","Smith","Mav","NB",84,{"$f":"SUMPRODUCT((1)*(Table1[[#This Row],[Desc1]:[Desc5]]=TRANSPOSE(Table2[[Desc1]:[Desc5]])))*SUMPRODUCT(--(Table1[[#This Row],[Supplier1]:[Supplier3]]=TRANSPOSE(Table2[[Supplier1]:[Supplier3]])))*(Table1[[#This Row],[Loc]]=Table2[Loc])","v":0}]
[null,"ME","GRE","FIN","IND","POR","NOR","Williams","Williams","Williams","Dur","TW",79,{"$f":"SUMPRODUCT((1)*(Table1[[#This Row],[Desc1]:[Desc5]]=TRANSPOSE(Table2[[Desc1]:[Desc5]])))*SUMPRODUCT(--(Table1[[#This Row],[Supplier1]:[Supplier3]]=TRANSPOSE(Table2[[Supplier1]:[Supplier3]])))*(Table1[[#This Row],[Loc]]=Table2[Loc])","v":0}]
[null,"LA","SWE","GBR","POR","MEX","ITA","Jones","Smith","Smith","Nes","DD",16,{"$f":"SUMPRODUCT((1)*(Table1[[#This Row],[Desc1]:[Desc5]]=TRANSPOSE(Table2[[Desc1]:[Desc5]])))*SUMPRODUCT(--(Table1[[#This Row],[Supplier1]:[Supplier3]]=TRANSPOSE(Table2[[Supplier1]:[Supplier3]])))*(Table1[[#This Row],[Loc]]=Table2[Loc])","v":2}]
[null,"KY","ISR","ARG","ARG","JPN","ARG","Jones","Johnson","Williams","Sek","WK",32,{"$f":"SUMPRODUCT((1)*(Table1[[#This Row],[Desc1]:[Desc5]]=TRANSPOSE(Table2[[Desc1]:[Desc5]])))*SUMPRODUCT(--(Table1[[#This Row],[Supplier1]:[Supplier3]]=TRANSPOSE(Table2[[Supplier1]:[Supplier3]])))*(Table1[[#This Row],[Loc]]=Table2[Loc])","v":0}]
[null,"MA","BEL","CHN","IRL","AUT","IND","Williams","Johnson","Johnson","Jot","TT",95,{"$f":"SUMPRODUCT((1)*(Table1[[#This Row],[Desc1]:[Desc5]]=TRANSPOSE(Table2[[Desc1]:[Desc5]])))*SUMPRODUCT(--(Table1[[#This Row],[Supplier1]:[Supplier3]]=TRANSPOSE(Table2[[Supplier1]:[Supplier3]])))*(Table1[[#This Row],[Loc]]=Table2[Loc])","v":0}]
[null,"LA","EGY","RSA","CHN","IRL","ITA","Johnson","Williams","Johnson","Fus","JV",98,{"$f":"SUMPRODUCT((1)*(Table1[[#This Row],[Desc1]:[Desc5]]=TRANSPOSE(Table2[[Desc1]:[Desc5]])))*SUMPRODUCT(--(Table1[[#This Row],[Supplier1]:[Supplier3]]=TRANSPOSE(Table2[[Supplier1]:[Supplier3]])))*(Table1[[#This Row],[Loc]]=Table2[Loc])","v":0}]
[null,"KY","IRI","INA","MEX","POL","ARG","Williams","Jones","Jones","Nof","PV",35,{"$f":"SUMPRODUCT((1)*(Table1[[#This Row],[Desc1]:[Desc5]]=TRANSPOSE(Table2[[Desc1]:[Desc5]])))*SUMPRODUCT(--(Table1[[#This Row],[Supplier1]:[Supplier3]]=TRANSPOSE(Table2[[Supplier1]:[Supplier3]])))*(Table1[[#This Row],[Loc]]=Table2[Loc])","v":0}]
[null,"ME","POL","SWE","BRA","GRE","HUN","Jones","Johnson","Smith","Jet","GW",47,{"$f":"SUMPRODUCT((1)*(Table1[[#This Row],[Desc1]:[Desc5]]=TRANSPOSE(Table2[[Desc1]:[Desc5]])))*SUMPRODUCT(--(Table1[[#This Row],[Supplier1]:[Supplier3]]=TRANSPOSE(Table2[[Supplier1]:[Supplier3]])))*(Table1[[#This Row],[Loc]]=Table2[Loc])","v":0}]
[null,"LA","DEN","AUT","CZE","ARG","SWE","Williams","Brown","Brown","Duv","MD",22,{"$f":"SUMPRODUCT((1)*(Table1[[#This Row],[Desc1]:[Desc5]]=TRANSPOSE(Table2[[Desc1]:[Desc5]])))*SUMPRODUCT(--(Table1[[#This Row],[Supplier1]:[Supplier3]]=TRANSPOSE(Table2[[Supplier1]:[Supplier3]])))*(Table1[[#This Row],[Loc]]=Table2[Loc])","v":4}]
[null,"MA","BEL","ISL","POL","HUN","INA","Jones","Smith","Smith","Wov","DN",92,{"$f":"SUMPRODUCT((1)*(Table1[[#This Row],[Desc1]:[Desc5]]=TRANSPOSE(Table2[[Desc1]:[Desc5]])))*SUMPRODUCT(--(Table1[[#This Row],[Supplier1]:[Supplier3]]=TRANSPOSE(Table2[[Supplier1]:[Supplier3]])))*(Table1[[#This Row],[Loc]]=Table2[Loc])","v":0}]
[null,"KY","RUS","IND","RUS","FIN","SUI","Brown","Brown","Smith","Gib","MF",11,{"$f":"SUMPRODUCT((1)*(Table1[[#This Row],[Desc1]:[Desc5]]=TRANSPOSE(Table2[[Desc1]:[Desc5]])))*SUMPRODUCT(--(Table1[[#This Row],[Supplier1]:[Supplier3]]=TRANSPOSE(Table2[[Supplier1]:[Supplier3]])))*(Table1[[#This Row],[Loc]]=Table2[Loc])","v":0}]
[null,"KY","JPN","POR","GER","BRA","DEN","Jones","Brown","Smith","Gef","VH",42,{"$f":"SUMPRODUCT((1)*(Table1[[#This Row],[Desc1]:[Desc5]]=TRANSPOSE(Table2[[Desc1]:[Desc5]])))*SUMPRODUCT(--(Table1[[#This Row],[Supplier1]:[Supplier3]]=TRANSPOSE(Table2[[Supplier1]:[Supplier3]])))*(Table1[[#This Row],[Loc]]=Table2[Loc])","v":0}]
[null,"LA","NOR","ITA","INA","INA","HUN","Smith","Brown","Jones","Hum","DT",84,{"$f":"SUMPRODUCT((1)*(Table1[[#This Row],[Desc1]:[Desc5]]=TRANSPOSE(Table2[[Desc1]:[Desc5]])))*SUMPRODUCT(--(Table1[[#This Row],[Supplier1]:[Supplier3]]=TRANSPOSE(Table2[[Supplier1]:[Supplier3]])))*(Table1[[#This Row],[Loc]]=Table2[Loc])","v":0}]
[null,"LA","HUN","ARG","ITA","SWE","AUT","Brown","Jones","Smith","Gub","VB",28,{"$f":"SUMPRODUCT((1)*(Table1[[#This Row],[Desc1]:[Desc5]]=TRANSPOSE(Table2[[Desc1]:[Desc5]])))*SUMPRODUCT(--(Table1[[#This Row],[Supplier1]:[Supplier3]]=TRANSPOSE(Table2[[Supplier1]:[Supplier3]])))*(Table1[[#This Row],[Loc]]=Table2[Loc])","v":2}]
[null,"LA","ISL","MEX","BEL","IND","BRA","Jones","Jones","Williams","Fan","NM",98,{"$f":"SUMPRODUCT((1)*(Table1[[#This Row],[Desc1]:[Desc5]]=TRANSPOSE(Table2[[Desc1]:[Desc5]])))*SUMPRODUCT(--(Table1[[#This Row],[Supplier1]:[Supplier3]]=TRANSPOSE(Table2[[Supplier1]:[Supplier3]])))*(Table1[[#This Row],[Loc]]=Table2[Loc])","v":0}]
[null,"KY","AUS","POR","INA","RUS","IRL","Smith","Smith","Jones","Tos","RT",16,{"$f":"SUMPRODUCT((1)*(Table1[[#This Row],[Desc1]:[Desc5]]=TRANSPOSE(Table2[[Desc1]:[Desc5]])))*SUMPRODUCT(--(Table1[[#This Row],[Supplier1]:[Supplier3]]=TRANSPOSE(Table2[[Supplier1]:[Supplier3]])))*(Table1[[#This Row],[Loc]]=Table2[Loc])","v":0}]
[null,"LA","SWE","IRI","EGY","CHN","RUS","Smith","Smith","Jones","Rud","WJ",82,{"$f":"SUMPRODUCT((1)*(Table1[[#This Row],[Desc1]:[Desc5]]=TRANSPOSE(Table2[[Desc1]:[Desc5]])))*SUMPRODUCT(--(Table1[[#This Row],[Supplier1]:[Supplier3]]=TRANSPOSE(Table2[[Supplier1]:[Supplier3]])))*(Table1[[#This Row],[Loc]]=Table2[Loc])","v":0}]
[null,"KY","BRA","INA","INA","CZE","JPN","Brown","Williams","Williams","Lab","PV",45,{"$f":"SUMPRODUCT((1)*(Table1[[#This Row],[Desc1]:[Desc5]]=TRANSPOSE(Table2[[Desc1]:[Desc5]])))*SUMPRODUCT(--(Table1[[#This Row],[Supplier1]:[Supplier3]]=TRANSPOSE(Table2[[Supplier1]:[Supplier3]])))*(Table1[[#This Row],[Loc]]=Table2[Loc])","v":0}]
[null,"KS","DEN","POL","POL","POR","CAN","Brown","Smith","Smith","Gep","VM",29,{"$f":"SUMPRODUCT((1)*(Table1[[#This Row],[Desc1]:[Desc5]]=TRANSPOSE(Table2[[Desc1]:[Desc5]])))*SUMPRODUCT(--(Table1[[#This Row],[Supplier1]:[Supplier3]]=TRANSPOSE(Table2[[Supplier1]:[Supplier3]])))*(Table1[[#This Row],[Loc]]=Table2[Loc])","v":0}]
[null,"MA","FIN","SWE","GER","GBR","NED","Jones","Brown","Johnson","Ven","MK",76,{"$f":"SUMPRODUCT((1)*(Table1[[#This Row],[Desc1]:[Desc5]]=TRANSPOSE(Table2[[Desc1]:[Desc5]])))*SUMPRODUCT(--(Table1[[#This Row],[Supplier1]:[Supplier3]]=TRANSPOSE(Table2[[Supplier1]:[Supplier3]])))*(Table1[[#This Row],[Loc]]=Table2[Loc])","v":0}]
[null,"LA","GRE","ITA","POR","JPN","SWE","Jones","Williams","Brown","Wes","RR",54,{"$f":"SUMPRODUCT((1)*(Table1[[#This Row],[Desc1]:[Desc5]]=TRANSPOSE(Table2[[Desc1]:[Desc5]])))*SUMPRODUCT(--(Table1[[#This Row],[Supplier1]:[Supplier3]]=TRANSPOSE(Table2[[Supplier1]:[Supplier3]])))*(Table1[[#This Row],[Loc]]=Table2[Loc])","v":0}]
[null,"KY","NED","CZE","DEN","ESP","RUS","Brown","Williams","Williams","Vod","LN",11,{"$f":"SUMPRODUCT((1)*(Table1[[#This Row],[Desc1]:[Desc5]]=TRANSPOSE(Table2[[Desc1]:[Desc5]])))*SUMPRODUCT(--(Table1[[#This Row],[Supplier1]:[Supplier3]]=TRANSPOSE(Table2[[Supplier1]:[Supplier3]])))*(Table1[[#This Row],[Loc]]=Table2[Loc])","v":0}]
[null,"KY","DEN","SWE","GER","POL","RSA","Jones","Brown","Jones","Jac","MD",46,{"$f":"SUMPRODUCT((1)*(Table1[[#This Row],[Desc1]:[Desc5]]=TRANSPOSE(Table2[[Desc1]:[Desc5]])))*SUMPRODUCT(--(Table1[[#This Row],[Supplier1]:[Supplier3]]=TRANSPOSE(Table2[[Supplier1]:[Supplier3]])))*(Table1[[#This Row],[Loc]]=Table2[Loc])","v":0}]
[null,"MA","CHI","CHN","IRI","CZE","BEL","Williams","Smith","Brown","Nad","JM",79,{"$f":"SUMPRODUCT((1)*(Table1[[#This Row],[Desc1]:[Desc5]]=TRANSPOSE(Table2[[Desc1]:[Desc5]])))*SUMPRODUCT(--(Table1[[#This Row],[Supplier1]:[Supplier3]]=TRANSPOSE(Table2[[Supplier1]:[Supplier3]])))*(Table1[[#This Row],[Loc]]=Table2[Loc])","v":0}]
[null,"MA","DEN","SUI","CHI","POR","HUN","Smith","Smith","Williams","Jep","PG",39,{"$f":"SUMPRODUCT((1)*(Table1[[#This Row],[Desc1]:[Desc5]]=TRANSPOSE(Table2[[Desc1]:[Desc5]])))*SUMPRODUCT(--(Table1[[#This Row],[Supplier1]:[Supplier3]]=TRANSPOSE(Table2[[Supplier1]:[Supplier3]])))*(Table1[[#This Row],[Loc]]=Table2[Loc])","v":0}]
[null,"MD","NED","DEN","RUS","IRL","NOR","Johnson","Johnson","Williams","Som","PF",94,{"$f":"SUMPRODUCT((1)*(Table1[[#This Row],[Desc1]:[Desc5]]=TRANSPOSE(Table2[[Desc1]:[Desc5]])))*SUMPRODUCT(--(Table1[[#This Row],[Supplier1]:[Supplier3]]=TRANSPOSE(Table2[[Supplier1]:[Supplier3]])))*(Table1[[#This Row],[Loc]]=Table2[Loc])","v":0}]
[null,"MD","POL","IND","ARG","RUS","ISR","Jones","Williams","Williams","Meh","RK",33,{"$f":"SUMPRODUCT((1)*(Table1[[#This Row],[Desc1]:[Desc5]]=TRANSPOSE(Table2[[Desc1]:[Desc5]])))*SUMPRODUCT(--(Table1[[#This Row],[Supplier1]:[Supplier3]]=TRANSPOSE(Table2[[Supplier1]:[Supplier3]])))*(Table1[[#This Row],[Loc]]=Table2[Loc])","v":0}]
[null,"LA","INA","BEL","ITA","SUI","POL","Johnson","Brown","Williams","Nib","PK",87,{"$f":"SUMPRODUCT((1)*(Table1[[#This Row],[Desc1]:[Desc5]]=TRANSPOSE(Table2[[Desc1]:[Desc5]])))*SUMPRODUCT(--(Table1[[#This Row],[Supplier1]:[Supplier3]]=TRANSPOSE(Table2[[Supplier1]:[Supplier3]])))*(Table1[[#This Row],[Loc]]=Table2[Loc])","v":0}]
[null,"LA","BRA","NED","NOR","NOR","IRL","Brown","Johnson","Johnson","Vav","RD",40,{"$f":"SUMPRODUCT((1)*(Table1[[#This Row],[Desc1]:[Desc5]]=TRANSPOSE(Table2[[Desc1]:[Desc5]])))*SUMPRODUCT(--(Table1[[#This Row],[Supplier1]:[Supplier3]]=TRANSPOSE(Table2[[Supplier1]:[Supplier3]])))*(Table1[[#This Row],[Loc]]=Table2[Loc])","v":0}]
[null,"KS","CHN","POL","IRL","GBR","ITA","Brown","Jones","Johnson","Lup","BR",63,{"$f":"SUMPRODUCT((1)*(Table1[[#This Row],[Desc1]:[Desc5]]=TRANSPOSE(Table2[[Desc1]:[Desc5]])))*SUMPRODUCT(--(Table1[[#This Row],[Supplier1]:[Supplier3]]=TRANSPOSE(Table2[[Supplier1]:[Supplier3]])))*(Table1[[#This Row],[Loc]]=Table2[Loc])","v":0}]
[null,"LA","BEL","GBR","AUT","RSA","JPN","Brown","Brown","Smith","Lus","DM",95,{"$f":"SUMPRODUCT((1)*(Table1[[#This Row],[Desc1]:[Desc5]]=TRANSPOSE(Table2[[Desc1]:[Desc5]])))*SUMPRODUCT(--(Table1[[#This Row],[Supplier1]:[Supplier3]]=TRANSPOSE(Table2[[Supplier1]:[Supplier3]])))*(Table1[[#This Row],[Loc]]=Table2[Loc])","v":0}]
[null,"MA","GRE","CAN","POR","BEL","FRA","Jones","Johnson","Brown","Bus","TW",50,{"$f":"SUMPRODUCT((1)*(Table1[[#This Row],[Desc1]:[Desc5]]=TRANSPOSE(Table2[[Desc1]:[Desc5]])))*SUMPRODUCT(--(Table1[[#This Row],[Supplier1]:[Supplier3]]=TRANSPOSE(Table2[[Supplier1]:[Supplier3]])))*(Table1[[#This Row],[Loc]]=Table2[Loc])","v":0}]
[null,"ME","SWE","CHI","FRA","INA","AUS","Williams","Johnson","Brown","Pit","KP",15,{"$f":"SUMPRODUCT((1)*(Table1[[#This Row],[Desc1]:[Desc5]]=TRANSPOSE(Table2[[Desc1]:[Desc5]])))*SUMPRODUCT(--(Table1[[#This Row],[Supplier1]:[Supplier3]]=TRANSPOSE(Table2[[Supplier1]:[Supplier3]])))*(Table1[[#This Row],[Loc]]=Table2[Loc])","v":0}]
[null,"KS","POL","ITA","AUT","CHI","ESP","Johnson","Williams","Brown","Dum","RD",71,{"$f":"SUMPRODUCT((1)*(Table1[[#This Row],[Desc1]:[Desc5]]=TRANSPOSE(Table2[[Desc1]:[Desc5]])))*SUMPRODUCT(--(Table1[[#This Row],[Supplier1]:[Supplier3]]=TRANSPOSE(Table2[[Supplier1]:[Supplier3]])))*(Table1[[#This Row],[Loc]]=Table2[Loc])","v":0}]
[null,"MD","CHN","CHI","INA","MEX","BRA","Brown","Jones","Smith","Rah","DJ",95,{"$f":"SUMPRODUCT((1)*(Table1[[#This Row],[Desc1]:[Desc5]]=TRANSPOSE(Table2[[Desc1]:[Desc5]])))*SUMPRODUCT(--(Table1[[#This Row],[Supplier1]:[Supplier3]]=TRANSPOSE(Table2[[Supplier1]:[Supplier3]])))*(Table1[[#This Row],[Loc]]=Table2[Loc])","v":0}]
[null,"KY","BRA","GRE","RUS","FIN","DEN","Jones","Smith","Smith","Pen","GT",97,{"$f":"SUMPRODUCT((1)*(Table1[[#This Row],[Desc1]:[Desc5]]=TRANSPOSE(Table2[[Desc1]:[Desc5]])))*SUMPRODUCT(--(Table1[[#This Row],[Supplier1]:[Supplier3]]=TRANSPOSE(Table2[[Supplier1]:[Supplier3]])))*(Table1[[#This Row],[Loc]]=Table2[Loc])","v":0}]
[null,"MA","POR","NED","ISR","NOR","AUT","Jones","Williams","Williams","Wuv","DK",65,{"$f":"SUMPRODUCT((1)*(Table1[[#This Row],[Desc1]:[Desc5]]=TRANSPOSE(Table2[[Desc1]:[Desc5]])))*SUMPRODUCT(--(Table1[[#This Row],[Supplier1]:[Supplier3]]=TRANSPOSE(Table2[[Supplier1]:[Supplier3]])))*(Table1[[#This Row],[Loc]]=Table2[Loc])","v":0}]
[null,"ME","ISL","IRL","GRE","ESP","SWE","Williams","Williams","Smith","Mum","FS",86,{"$f":"SUMPRODUCT((1)*(Table1[[#This Row],[Desc1]:[Desc5]]=TRANSPOSE(Table2[[Desc1]:[Desc5]])))*SUMPRODUCT(--(Table1[[#This Row],[Supplier1]:[Supplier3]]=TRANSPOSE(Table2[[Supplier1]:[Supplier3]])))*(Table1[[#This Row],[Loc]]=Table2[Loc])","v":0}]
[null,"MA","GRE","EGY","IRL","ITA","CHN","Williams","Williams","Jones","Vir","FG",58,{"$f":"SUMPRODUCT((1)*(Table1[[#This Row],[Desc1]:[Desc5]]=TRANSPOSE(Table2[[Desc1]:[Desc5]])))*SUMPRODUCT(--(Table1[[#This Row],[Supplier1]:[Supplier3]]=TRANSPOSE(Table2[[Supplier1]:[Supplier3]])))*(Table1[[#This Row],[Loc]]=Table2[Loc])","v":0}]
[null,"MA","JPN","NOR","NED","GBR","INA","Brown","Smith","Williams","Bab","TH",75,{"$f":"SUMPRODUCT((1)*(Table1[[#This Row],[Desc1]:[Desc5]]=TRANSPOSE(Table2[[Desc1]:[Desc5]])))*SUMPRODUCT(--(Table1[[#This Row],[Supplier1]:[Supplier3]]=TRANSPOSE(Table2[[Supplier1]:[Supplier3]])))*(Table1[[#This Row],[Loc]]=Table2[Loc])","v":0}]
[null,"LA","ESP","IRI","EGY","ISR","CHN","Jones","Jones","Jones","Rat","KN",17,{"$f":"SUMPRODUCT((1)*(Table1[[#This Row],[Desc1]:[Desc5]]=TRANSPOSE(Table2[[Desc1]:[Desc5]])))*SUMPRODUCT(--(Table1[[#This Row],[Supplier1]:[Supplier3]]=TRANSPOSE(Table2[[Supplier1]:[Supplier3]])))*(Table1[[#This Row],[Loc]]=Table2[Loc])","v":0}]
[null,"ME","BEL","CZE","ISR","MEX","AUS","Smith","Jones","Jones","Kat","JH",96,{"$f":"SUMPRODUCT((1)*(Table1[[#This Row],[Desc1]:[Desc5]]=TRANSPOSE(Table2[[Desc1]:[Desc5]])))*SUMPRODUCT(--(Table1[[#This Row],[Supplier1]:[Supplier3]]=TRANSPOSE(Table2[[Supplier1]:[Supplier3]])))*(Table1[[#This Row],[Loc]]=Table2[Loc])","v":0}]
[null,"MD","ISR","DEN","ESP","SUI","ESP","Smith","Jones","Jones","Par","TP",61,{"$f":"SUMPRODUCT((1)*(Table1[[#This Row],[Desc1]:[Desc5]]=TRANSPOSE(Table2[[Desc1]:[Desc5]])))*SUMPRODUCT(--(Table1[[#This Row],[Supplier1]:[Supplier3]]=TRANSPOSE(Table2[[Supplier1]:[Supplier3]])))*(Table1[[#This Row],[Loc]]=Table2[Loc])","v":0}]
[null,"MD","CZE","HUN","GER","RUS","BEL","Brown","Johnson","Johnson","Pit","RD",61,{"$f":"SUMPRODUCT((1)*(Table1[[#This Row],[Desc1]:[Desc5]]=TRANSPOSE(Table2[[Desc1]:[Desc5]])))*SUMPRODUCT(--(Table1[[#This Row],[Supplier1]:[Supplier3]]=TRANSPOSE(Table2[[Supplier1]:[Supplier3]])))*(Table1[[#This Row],[Loc]]=Table2[Loc])","v":0}]
[null,"KS","RUS","JPN","ITA","CZE","RSA","Williams","Brown","Williams","Rup","KH",39,{"$f":"SUMPRODUCT((1)*(Table1[[#This Row],[Desc1]:[Desc5]]=TRANSPOSE(Table2[[Desc1]:[Desc5]])))*SUMPRODUCT(--(Table1[[#This Row],[Supplier1]:[Supplier3]]=TRANSPOSE(Table2[[Supplier1]:[Supplier3]])))*(Table1[[#This Row],[Loc]]=Table2[Loc])","v":0}]
[null,"KS","POR","NOR","RSA","GER","RSA","Williams","Brown","Williams","Pof","WT",24,{"$f":"SUMPRODUCT((1)*(Table1[[#This Row],[Desc1]:[Desc5]]=TRANSPOSE(Table2[[Desc1]:[Desc5]])))*SUMPRODUCT(--(Table1[[#This Row],[Supplier1]:[Supplier3]]=TRANSPOSE(Table2[[Supplier1]:[Supplier3]])))*(Table1[[#This Row],[Loc]]=Table2[Loc])","v":0}]
[null,"MD","RUS","CHI","GBR","CHN","DEN","Smith","Williams","Brown","Tud","JH",49,{"$f":"SUMPRODUCT((1)*(Table1[[#This Row],[Desc1]:[Desc5]]=TRANSPOSE(Table2[[Desc1]:[Desc5]])))*SUMPRODUCT(--(Table1[[#This Row],[Supplier1]:[Supplier3]]=TRANSPOSE(Table2[[Supplier1]:[Supplier3]])))*(Table1[[#This Row],[Loc]]=Table2[Loc])","v":0}]
[null,"MD","MEX","AUS","DEN","GER","FIN","Smith","Jones","Smith","Sip","VD",94,{"$f":"SUMPRODUCT((1)*(Table1[[#This Row],[Desc1]:[Desc5]]=TRANSPOSE(Table2[[Desc1]:[Desc5]])))*SUMPRODUCT(--(Table1[[#This Row],[Supplier1]:[Supplier3]]=TRANSPOSE(Table2[[Supplier1]:[Supplier3]])))*(Table1[[#This Row],[Loc]]=Table2[Loc])","v":0}]
[null,"MA","GRE","ESP","ESP","SUI","CHI","Johnson","Smith","Brown","Ham","VH",97,{"$f":"SUMPRODUCT((1)*(Table1[[#This Row],[Desc1]:[Desc5]]=TRANSPOSE(Table2[[Desc1]:[Desc5]])))*SUMPRODUCT(--(Table1[[#This Row],[Supplier1]:[Supplier3]]=TRANSPOSE(Table2[[Supplier1]:[Supplier3]])))*(Table1[[#This Row],[Loc]]=Table2[Loc])","v":0}]
[null,"KS","ISL","GRE","CZE","ESP","RSA","Brown","Jones","Williams","Dom","VB",41,{"$f":"SUMPRODUCT((1)*(Table1[[#This Row],[Desc1]:[Desc5]]=TRANSPOSE(Table2[[Desc1]:[Desc5]])))*SUMPRODUCT(--(Table1[[#This Row],[Supplier1]:[Supplier3]]=TRANSPOSE(Table2[[Supplier1]:[Supplier3]])))*(Table1[[#This Row],[Loc]]=Table2[Loc])","v":0}]
[null,"ME","CAN","MEX","BRA","GRE","ITA","Johnson","Smith","Williams","Kuk","NB",33,{"$f":"SUMPRODUCT((1)*(Table1[[#This Row],[Desc1]:[Desc5]]=TRANSPOSE(Table2[[Desc1]:[Desc5]])))*SUMPRODUCT(--(Table1[[#This Row],[Supplier1]:[Supplier3]]=TRANSPOSE(Table2[[Supplier1]:[Supplier3]])))*(Table1[[#This Row],[Loc]]=Table2[Loc])","v":0}]
[null,"MD","ARG","AUS","ISL","CAN","GRE","Williams","Smith","Jones","Vis","GM",24,{"$f":"SUMPRODUCT((1)*(Table1[[#This Row],[Desc1]:[Desc5]]=TRANSPOSE(Table2[[Desc1]:[Desc5]])))*SUMPRODUCT(--(Table1[[#This Row],[Supplier1]:[Supplier3]]=TRANSPOSE(Table2[[Supplier1]:[Supplier3]])))*(Table1[[#This Row],[Loc]]=Table2[Loc])","v":0}]
[null,"KY","POR","NED","CHN","IND","ARG","Williams","Johnson","Smith","Ren","MF",87,{"$f":"SUMPRODUCT((1)*(Table1[[#This Row],[Desc1]:[Desc5]]=TRANSPOSE(Table2[[Desc1]:[Desc5]])))*SUMPRODUCT(--(Table1[[#This Row],[Supplier1]:[Supplier3]]=TRANSPOSE(Table2[[Supplier1]:[Supplier3]])))*(Table1[[#This Row],[Loc]]=Table2[Loc])","v":0}]
[null,"KS","AUT","EGY","GER","HUN","ITA","Johnson","Johnson","Smith","Dav","TM",47,{"$f":"SUMPRODUCT((1)*(Table1[[#This Row],[Desc1]:[Desc5]]=TRANSPOSE(Table2[[Desc1]:[Desc5]])))*SUMPRODUCT(--(Table1[[#This Row],[Supplier1]:[Supplier3]]=TRANSPOSE(Table2[[Supplier1]:[Supplier3]])))*(Table1[[#This Row],[Loc]]=Table2[Loc])","v":0}]
[null,"KS","MEX","SUI","DEN","ESP","SWE","Brown","Smith","Johnson","Pof","WP",34,{"$f":"SUMPRODUCT((1)*(Table1[[#This Row],[Desc1]:[Desc5]]=TRANSPOSE(Table2[[Desc1]:[Desc5]])))*SUMPRODUCT(--(Table1[[#This Row],[Supplier1]:[Supplier3]]=TRANSPOSE(Table2[[Supplier1]:[Supplier3]])))*(Table1[[#This Row],[Loc]]=Table2[Loc])","v":0}]
[null,"KY","ISL","RSA","CZE","CZE","GRE","Smith","Brown","Williams","Tah","MR",88,{"$f":"SUMPRODUCT((1)*(Table1[[#This Row],[Desc1]:[Desc5]]=TRANSPOSE(Table2[[Desc1]:[Desc5]])))*SUMPRODUCT(--(Table1[[#This Row],[Supplier1]:[Supplier3]]=TRANSPOSE(Table2[[Supplier1]:[Supplier3]])))*(Table1[[#This Row],[Loc]]=Table2[Loc])","v":0}]
[null,"ME","RUS","EGY","SUI","MEX","CHI","Jones","Brown","Smith","Wed","DB",31,{"$f":"SUMPRODUCT((1)*(Table1[[#This Row],[Desc1]:[Desc5]]=TRANSPOSE(Table2[[Desc1]:[Desc5]])))*SUMPRODUCT(--(Table1[[#This Row],[Supplier1]:[Supplier3]]=TRANSPOSE(Table2[[Supplier1]:[Supplier3]])))*(Table1[[#This Row],[Loc]]=Table2[Loc])","v":0}]
[null,"MA","SWE","BRA","FIN","CHI","GBR","Jones","Johnson","Smith","Dot","DJ",67,{"$f":"SUMPRODUCT((1)*(Table1[[#This Row],[Desc1]:[Desc5]]=TRANSPOSE(Table2[[Desc1]:[Desc5]])))*SUMPRODUCT(--(Table1[[#This Row],[Supplier1]:[Supplier3]]=TRANSPOSE(Table2[[Supplier1]:[Supplier3]])))*(Table1[[#This Row],[Loc]]=Table2[Loc])","v":0}]
[null,"KY","ISR","ISR","JPN","GER","FIN","Williams","Jones","Williams","Duc","RF",97,{"$f":"SUMPRODUCT((1)*(Table1[[#This Row],[Desc1]:[Desc5]]=TRANSPOSE(Table2[[Desc1]:[Desc5]])))*SUMPRODUCT(--(Table1[[#This Row],[Supplier1]:[Supplier3]]=TRANSPOSE(Table2[[Supplier1]:[Supplier3]])))*(Table1[[#This Row],[Loc]]=Table2[Loc])","v":0}]
[null,"MD","EGY","CZE","FRA","MEX","ITA","Brown","Smith","Smith","Roc","PB",51,{"$f":"SUMPRODUCT((1)*(Table1[[#This Row],[Desc1]:[Desc5]]=TRANSPOSE(Table2[[Desc1]:[Desc5]])))*SUMPRODUCT(--(Table1[[#This Row],[Supplier1]:[Supplier3]]=TRANSPOSE(Table2[[Supplier1]:[Supplier3]])))*(Table1[[#This Row],[Loc]]=Table2[Loc])","v":0}]
[null,"MD","FIN","CAN","ITA","FIN","HUN","Brown","Brown","Williams","Vac","FF",27,{"$f":"SUMPRODUCT((1)*(Table1[[#This Row],[Desc1]:[Desc5]]=TRANSPOSE(Table2[[Desc1]:[Desc5]])))*SUMPRODUCT(--(Table1[[#This Row],[Supplier1]:[Supplier3]]=TRANSPOSE(Table2[[Supplier1]:[Supplier3]])))*(Table1[[#This Row],[Loc]]=Table2[Loc])","v":0}]
[null,"KY","GER","RSA","HUN","SWE","ITA","Brown","Johnson","Jones","Lov","DG",85,{"$f":"SUMPRODUCT((1)*(Table1[[#This Row],[Desc1]:[Desc5]]=TRANSPOSE(Table2[[Desc1]:[Desc5]])))*SUMPRODUCT(--(Table1[[#This Row],[Supplier1]:[Supplier3]]=TRANSPOSE(Table2[[Supplier1]:[Supplier3]])))*(Table1[[#This Row],[Loc]]=Table2[Loc])","v":0}]
[null,"LA","GRE","ESP","ARG","POR","GBR","Jones","Brown","Johnson","Rog","KP",51,{"$f":"SUMPRODUCT((1)*(Table1[[#This Row],[Desc1]:[Desc5]]=TRANSPOSE(Table2[[Desc1]:[Desc5]])))*SUMPRODUCT(--(Table1[[#This Row],[Supplier1]:[Supplier3]]=TRANSPOSE(Table2[[Supplier1]:[Supplier3]])))*(Table1[[#This Row],[Loc]]=Table2[Loc])","v":1}]
[null,"MA","FIN","CHN","ISR","NOR","SWE","Brown","Brown","Brown","Gob","MJ",28,{"$f":"SUMPRODUCT((1)*(Table1[[#This Row],[Desc1]:[Desc5]]=TRANSPOSE(Table2[[Desc1]:[Desc5]])))*SUMPRODUCT(--(Table1[[#This Row],[Supplier1]:[Supplier3]]=TRANSPOSE(Table2[[Supplier1]:[Supplier3]])))*(Table1[[#This Row],[Loc]]=Table2[Loc])","v":0}]
[null,"MD","SUI","BEL","FRA","BEL","BRA","Jones","Smith","Johnson","Teb","WJ",45,{"$f":"SUMPRODUCT((1)*(Table1[[#This Row],[Desc1]:[Desc5]]=TRANSPOSE(Table2[[Desc1]:[Desc5]])))*SUMPRODUCT(--(Table1[[#This Row],[Supplier1]:[Supplier3]]=TRANSPOSE(Table2[[Supplier1]:[Supplier3]])))*(Table1[[#This Row],[Loc]]=Table2[Loc])","v":0}]
[null,"LA","ISL","HUN","INA","NOR","IRI","Jones","Johnson","Brown","Jod","SB",98,{"$f":"SUMPRODUCT((1)*(Table1[[#This Row],[Desc1]:[Desc5]]=TRANSPOSE(Table2[[Desc1]:[Desc5]])))*SUMPRODUCT(--(Table1[[#This Row],[Supplier1]:[Supplier3]]=TRANSPOSE(Table2[[Supplier1]:[Supplier3]])))*(Table1[[#This Row],[Loc]]=Table2[Loc])","v":0}]
[null,"ME","EGY","RSA","HUN","BEL","GBR","Johnson","Smith","Williams","Duc","LF",14,{"$f":"SUMPRODUCT((1)*(Table1[[#This Row],[Desc1]:[Desc5]]=TRANSPOSE(Table2[[Desc1]:[Desc5]])))*SUMPRODUCT(--(Table1[[#This Row],[Supplier1]:[Supplier3]]=TRANSPOSE(Table2[[Supplier1]:[Supplier3]])))*(Table1[[#This Row],[Loc]]=Table2[Loc])","v":0}]
[null,"KS","ISL","POR","CAN","POL","BRA","Jones","Williams","Brown","Bef","SF",16,{"$f":"SUMPRODUCT((1)*(Table1[[#This Row],[Desc1]:[Desc5]]=TRANSPOSE(Table2[[Desc1]:[Desc5]])))*SUMPRODUCT(--(Table1[[#This Row],[Supplier1]:[Supplier3]]=TRANSPOSE(Table2[[Supplier1]:[Supplier3]])))*(Table1[[#This Row],[Loc]]=Table2[Loc])","v":0}]
[null,"LA","DEN","EGY","EGY","FRA","GRE","Jones","Smith","Smith","Nib","DS",12,{"$f":"SUMPRODUCT((1)*(Table1[[#This Row],[Desc1]:[Desc5]]=TRANSPOSE(Table2[[Desc1]:[Desc5]])))*SUMPRODUCT(--(Table1[[#This Row],[Supplier1]:[Supplier3]]=TRANSPOSE(Table2[[Supplier1]:[Supplier3]])))*(Table1[[#This Row],[Loc]]=Table2[Loc])","v":0}]
[null,"ME","ISR","DEN","INA","AUS","CHN","Williams","Brown","Brown","Jus","KB",72,{"$f":"SUMPRODUCT((1)*(Table1[[#This Row],[Desc1]:[Desc5]]=TRANSPOSE(Table2[[Desc1]:[Desc5]])))*SUMPRODUCT(--(Table1[[#This Row],[Supplier1]:[Supplier3]]=TRANSPOSE(Table2[[Supplier1]:[Supplier3]])))*(Table1[[#This Row],[Loc]]=Table2[Loc])","v":0}]
[null,"KY","POL","EGY","NOR","MEX","RSA","Smith","Brown","Johnson","Jar","RN",53,{"$f":"SUMPRODUCT((1)*(Table1[[#This Row],[Desc1]:[Desc5]]=TRANSPOSE(Table2[[Desc1]:[Desc5]])))*SUMPRODUCT(--(Table1[[#This Row],[Supplier1]:[Supplier3]]=TRANSPOSE(Table2[[Supplier1]:[Supplier3]])))*(Table1[[#This Row],[Loc]]=Table2[Loc])","v":0}]
[null,"KY","RSA","RSA","SUI","RSA","AUT","Smith","Smith","Johnson","Nuk","BB",58,{"$f":"SUMPRODUCT((1)*(Table1[[#This Row],[Desc1]:[Desc5]]=TRANSPOSE(Table2[[Desc1]:[Desc5]])))*SUMPRODUCT(--(Table1[[#This Row],[Supplier1]:[Supplier3]]=TRANSPOSE(Table2[[Supplier1]:[Supplier3]])))*(Table1[[#This Row],[Loc]]=Table2[Loc])","v":0}]
[null,"MD","CHN","CAN","POR","GRE","GER","Brown","Williams","Williams","Pos","JB",48,{"$f":"SUMPRODUCT((1)*(Table1[[#This Row],[Desc1]:[Desc5]]=TRANSPOSE(Table2[[Desc1]:[Desc5]])))*SUMPRODUCT(--(Table1[[#This Row],[Supplier1]:[Supplier3]]=TRANSPOSE(Table2[[Supplier1]:[Supplier3]])))*(Table1[[#This Row],[Loc]]=Table2[Loc])","v":0}]
[null,"MD","EGY","ISR","DEN","EGY","GBR","Smith","Johnson","Johnson","Non","JR",10,{"$f":"SUMPRODUCT((1)*(Table1[[#This Row],[Desc1]:[Desc5]]=TRANSPOSE(Table2[[Desc1]:[Desc5]])))*SUMPRODUCT(--(Table1[[#This Row],[Supplier1]:[Supplier3]]=TRANSPOSE(Table2[[Supplier1]:[Supplier3]])))*(Table1[[#This Row],[Loc]]=Table2[Loc])","v":0}]
[null,"KY","ARG","POR","POR","BRA","NOR","Brown","Smith","Smith","Mar","HH",35,{"$f":"SUMPRODUCT((1)*(Table1[[#This Row],[Desc1]:[Desc5]]=TRANSPOSE(Table2[[Desc1]:[Desc5]])))*SUMPRODUCT(--(Table1[[#This Row],[Supplier1]:[Supplier3]]=TRANSPOSE(Table2[[Supplier1]:[Supplier3]])))*(Table1[[#This Row],[Loc]]=Table2[Loc])","v":0}]
[null,"LA","CHI","EGY","ISR","POR","AUT","Smith","Smith","Johnson","Nit","WD",81,{"$f":"SUMPRODUCT((1)*(Table1[[#This Row],[Desc1]:[Desc5]]=TRANSPOSE(Table2[[Desc1]:[Desc5]])))*SUMPRODUCT(--(Table1[[#This Row],[Supplier1]:[Supplier3]]=TRANSPOSE(Table2[[Supplier1]:[Supplier3]])))*(Table1[[#This Row],[Loc]]=Table2[Loc])","v":0}]
[null,"KY","SWE","RSA","ISR","POL","AUT","Smith","Smith","Williams","Dac","FK",42,{"$f":"SUMPRODUCT((1)*(Table1[[#This Row],[Desc1]:[Desc5]]=TRANSPOSE(Table2[[Desc1]:[Desc5]])))*SUMPRODUCT(--(Table1[[#This Row],[Supplier1]:[Supplier3]]=TRANSPOSE(Table2[[Supplier1]:[Supplier3]])))*(Table1[[#This Row],[Loc]]=Table2[Loc])","v":0}]
[null,"MA","POL","ARG","DEN","AUS","AUS","Brown","Smith","Williams","Jag","BH",61,{"$f":"SUMPRODUCT((1)*(Table1[[#This Row],[Desc1]:[Desc5]]=TRANSPOSE(Table2[[Desc1]:[Desc5]])))*SUMPRODUCT(--(Table1[[#This Row],[Supplier1]:[Supplier3]]=TRANSPOSE(Table2[[Supplier1]:[Supplier3]])))*(Table1[[#This Row],[Loc]]=Table2[Loc])","v":0}]
[null,"LA","GBR","FIN","GRE","MEX","ARG","Jones","Jones","Jones","Ruh","BD",94,{"$f":"SUMPRODUCT((1)*(Table1[[#This Row],[Desc1]:[Desc5]]=TRANSPOSE(Table2[[Desc1]:[Desc5]])))*SUMPRODUCT(--(Table1[[#This Row],[Supplier1]:[Supplier3]]=TRANSPOSE(Table2[[Supplier1]:[Supplier3]])))*(Table1[[#This Row],[Loc]]=Table2[Loc])","v":0}]
[null,"KS","GRE","RUS","DEN","POR","GRE","Brown","Williams","Williams","Puc","PJ",91,{"$f":"SUMPRODUCT((1)*(Table1[[#This Row],[Desc1]:[Desc5]]=TRANSPOSE(Table2[[Desc1]:[Desc5]])))*SUMPRODUCT(--(Table1[[#This Row],[Supplier1]:[Supplier3]]=TRANSPOSE(Table2[[Supplier1]:[Supplier3]])))*(Table1[[#This Row],[Loc]]=Table2[Loc])","v":0}]
[null,"MA","GBR","IRI","NOR","AUS","SUI","Jones","Williams","Brown","Rad","FV",16,{"$f":"SUMPRODUCT((1)*(Table1[[#This Row],[Desc1]:[Desc5]]=TRANSPOSE(Table2[[Desc1]:[Desc5]])))*SUMPRODUCT(--(Table1[[#This Row],[Supplier1]:[Supplier3]]=TRANSPOSE(Table2[[Supplier1]:[Supplier3]])))*(Table1[[#This Row],[Loc]]=Table2[Loc])","v":0}]
[null,"KY","IRI","SWE","CAN","EGY","NOR","Smith","Smith","Johnson","Peh","RV",77,{"$f":"SUMPRODUCT((1)*(Table1[[#This Row],[Desc1]:[Desc5]]=TRANSPOSE(Table2[[Desc1]:[Desc5]])))*SUMPRODUCT(--(Table1[[#This Row],[Supplier1]:[Supplier3]]=TRANSPOSE(Table2[[Supplier1]:[Supplier3]])))*(Table1[[#This Row],[Loc]]=Table2[Loc])","v":0}]
[null,"MD","CZE","SUI","MEX","FRA","RUS","Jones","Johnson","Johnson","Wug","FS",28,{"$f":"SUMPRODUCT((1)*(Table1[[#This Row],[Desc1]:[Desc5]]=TRANSPOSE(Table2[[Desc1]:[Desc5]])))*SUMPRODUCT(--(Table1[[#This Row],[Supplier1]:[Supplier3]]=TRANSPOSE(Table2[[Supplier1]:[Supplier3]])))*(Table1[[#This Row],[Loc]]=Table2[Loc])","v":0}]
[null,"KS","NOR","FIN","JPN","MEX","RUS","Smith","Jones","Jones","Bov","TN",16,{"$f":"SUMPRODUCT((1)*(Table1[[#This Row],[Desc1]:[Desc5]]=TRANSPOSE(Table2[[Desc1]:[Desc5]])))*SUMPRODUCT(--(Table1[[#This Row],[Supplier1]:[Supplier3]]=TRANSPOSE(Table2[[Supplier1]:[Supplier3]])))*(Table1[[#This Row],[Loc]]=Table2[Loc])","v":0}]
[null,"ME","SUI","AUS","GBR","CHI","NED","Williams","Jones","Williams","Sac","JJ",36,{"$f":"SUMPRODUCT((1)*(Table1[[#This Row],[Desc1]:[Desc5]]=TRANSPOSE(Table2[[Desc1]:[Desc5]])))*SUMPRODUCT(--(Table1[[#This Row],[Supplier1]:[Supplier3]]=TRANSPOSE(Table2[[Supplier1]:[Supplier3]])))*(Table1[[#This Row],[Loc]]=Table2[Loc])","v":0}]
[null,"MA","AUT","IRI","ESP","CHN","AUS","Jones","Jones","Brown","Dis","HM",77,{"$f":"SUMPRODUCT((1)*(Table1[[#This Row],[Desc1]:[Desc5]]=TRANSPOSE(Table2[[Desc1]:[Desc5]])))*SUMPRODUCT(--(Table1[[#This Row],[Supplier1]:[Supplier3]]=TRANSPOSE(Table2[[Supplier1]:[Supplier3]])))*(Table1[[#This Row],[Loc]]=Table2[Loc])","v":0}]
[null,"KS","EGY","NOR","ISL","IRI","MEX","Smith","Johnson","Smith","Gah","JJ",25,{"$f":"SUMPRODUCT((1)*(Table1[[#This Row],[Desc1]:[Desc5]]=TRANSPOSE(Table2[[Desc1]:[Desc5]])))*SUMPRODUCT(--(Table1[[#This Row],[Supplier1]:[Supplier3]]=TRANSPOSE(Table2[[Supplier1]:[Supplier3]])))*(Table1[[#This Row],[Loc]]=Table2[Loc])","v":0}]
[null,"LA","ISL","AUS","HUN","EGY","NED","Williams","Johnson","Brown","Fuf","JK",86,{"$f":"SUMPRODUCT((1)*(Table1[[#This Row],[Desc1]:[Desc5]]=TRANSPOSE(Table2[[Desc1]:[Desc5]])))*SUMPRODUCT(--(Table1[[#This Row],[Supplier1]:[Supplier3]]=TRANSPOSE(Table2[[Supplier1]:[Supplier3]])))*(Table1[[#This Row],[Loc]]=Table2[Loc])","v":0}]
[null,"KY","HUN","RUS","GRE","NOR","POL","Brown","Smith","Smith","Kif","VW",90,{"$f":"SUMPRODUCT((1)*(Table1[[#This Row],[Desc1]:[Desc5]]=TRANSPOSE(Table2[[Desc1]:[Desc5]])))*SUMPRODUCT(--(Table1[[#This Row],[Supplier1]:[Supplier3]]=TRANSPOSE(Table2[[Supplier1]:[Supplier3]])))*(Table1[[#This Row],[Loc]]=Table2[Loc])","v":0}]
[null,"MD","IND","NED","SWE","NOR","MEX","Brown","Jones","Jones","Sut","BJ",55,{"$f":"SUMPRODUCT((1)*(Table1[[#This Row],[Desc1]:[Desc5]]=TRANSPOSE(Table2[[Desc1]:[Desc5]])))*SUMPRODUCT(--(Table1[[#This Row],[Supplier1]:[Supplier3]]=TRANSPOSE(Table2[[Supplier1]:[Supplier3]])))*(Table1[[#This Row],[Loc]]=Table2[Loc])","v":0}]
[null,"MA","IRI","IRL","HUN","ISL","AUT","Brown","Williams","Johnson","Gig","DH",78,{"$f":"SUMPRODUCT((1)*(Table1[[#This Row],[Desc1]:[Desc5]]=TRANSPOSE(Table2[[Desc1]:[Desc5]])))*SUMPRODUCT(--(Table1[[#This Row],[Supplier1]:[Supplier3]]=TRANSPOSE(Table2[[Supplier1]:[Supplier3]])))*(Table1[[#This Row],[Loc]]=Table2[Loc])","v":0}]
[null,"MA","ESP","GRE","BRA","CHN","DEN","Johnson","Jones","Williams","Tok","TL",68,{"$f":"SUMPRODUCT((1)*(Table1[[#This Row],[Desc1]:[Desc5]]=TRANSPOSE(Table2[[Desc1]:[Desc5]])))*SUMPRODUCT(--(Table1[[#This Row],[Supplier1]:[Supplier3]]=TRANSPOSE(Table2[[Supplier1]:[Supplier3]])))*(Table1[[#This Row],[Loc]]=Table2[Loc])","v":0}]
[null,"KY","ARG","FRA","ISR","FIN","ARG","Williams","Johnson","Johnson","Loc","BM",60,{"$f":"SUMPRODUCT((1)*(Table1[[#This Row],[Desc1]:[Desc5]]=TRANSPOSE(Table2[[Desc1]:[Desc5]])))*SUMPRODUCT(--(Table1[[#This Row],[Supplier1]:[Supplier3]]=TRANSPOSE(Table2[[Supplier1]:[Supplier3]])))*(Table1[[#This Row],[Loc]]=Table2[Loc])","v":0}]
[null,"ME","BEL","CAN","ESP","ISR","GBR","Jones","Smith","Jones","Jug","FM",25,{"$f":"SUMPRODUCT((1)*(Table1[[#This Row],[Desc1]:[Desc5]]=TRANSPOSE(Table2[[Desc1]:[Desc5]])))*SUMPRODUCT(--(Table1[[#This Row],[Supplier1]:[Supplier3]]=TRANSPOSE(Table2[[Supplier1]:[Supplier3]])))*(Table1[[#This Row],[Loc]]=Table2[Loc])","v":0}]
[null,"LA","IRI","POL","ESP","MEX","DEN","Jones","Johnson","Brown","Meb","LH",41,{"$f":"SUMPRODUCT((1)*(Table1[[#This Row],[Desc1]:[Desc5]]=TRANSPOSE(Table2[[Desc1]:[Desc5]])))*SUMPRODUCT(--(Table1[[#This Row],[Supplier1]:[Supplier3]]=TRANSPOSE(Table2[[Supplier1]:[Supplier3]])))*(Table1[[#This Row],[Loc]]=Table2[Loc])","v":1}]
[null,"MD","HUN","IRL","CHI","IRL","FIN","Williams","Johnson","Smith","Maf","PM",74,{"$f":"SUMPRODUCT((1)*(Table1[[#This Row],[Desc1]:[Desc5]]=TRANSPOSE(Table2[[Desc1]:[Desc5]])))*SUMPRODUCT(--(Table1[[#This Row],[Supplier1]:[Supplier3]]=TRANSPOSE(Table2[[Supplier1]:[Supplier3]])))*(Table1[[#This Row],[Loc]]=Table2[Loc])","v":0}]
[null,"LA","RSA","ISR","POL","GRE","HUN","Smith","Williams","Williams","Wiv","HR",68,{"$f":"SUMPRODUCT((1)*(Table1[[#This Row],[Desc1]:[Desc5]]=TRANSPOSE(Table2[[Desc1]:[Desc5]])))*SUMPRODUCT(--(Table1[[#This Row],[Supplier1]:[Supplier3]]=TRANSPOSE(Table2[[Supplier1]:[Supplier3]])))*(Table1[[#This Row],[Loc]]=Table2[Loc])","v":0}]
[null,"KY","CHN","SWE","CHN","AUS","GER","Jones","Williams","Jones","Wup","PH",30,{"$f":"SUMPRODUCT((1)*(Table1[[#This Row],[Desc1]:[Desc5]]=TRANSPOSE(Table2[[Desc1]:[Desc5]])))*SUMPRODUCT(--(Table1[[#This Row],[Supplier1]:[Supplier3]]=TRANSPOSE(Table2[[Supplier1]:[Supplier3]])))*(Table1[[#This Row],[Loc]]=Table2[Loc])","v":0}]
[null,"MA","SWE","ARG","NOR","EGY","ESP","Smith","Jones","Johnson","Gum","MF",15,{"$f":"SUMPRODUCT((1)*(Table1[[#This Row],[Desc1]:[Desc5]]=TRANSPOSE(Table2[[Desc1]:[Desc5]])))*SUMPRODUCT(--(Table1[[#This Row],[Supplier1]:[Supplier3]]=TRANSPOSE(Table2[[Supplier1]:[Supplier3]])))*(Table1[[#This Row],[Loc]]=Table2[Loc])","v":0}]
[null,"KS","NOR","CZE","JPN","GRE","NOR","Brown","Smith","Jones","Fum","WK",22,{"$f":"SUMPRODUCT((1)*(Table1[[#This Row],[Desc1]:[Desc5]]=TRANSPOSE(Table2[[Desc1]:[Desc5]])))*SUMPRODUCT(--(Table1[[#This Row],[Supplier1]:[Supplier3]]=TRANSPOSE(Table2[[Supplier1]:[Supplier3]])))*(Table1[[#This Row],[Loc]]=Table2[Loc])","v":0}]
[null,"LA","RUS","POR","SUI","EGY","CHI","Smith","Smith","Brown","Nah","FV",29,{"$f":"SUMPRODUCT((1)*(Table1[[#This Row],[Desc1]:[Desc5]]=TRANSPOSE(Table2[[Desc1]:[Desc5]])))*SUMPRODUCT(--(Table1[[#This Row],[Supplier1]:[Supplier3]]=TRANSPOSE(Table2[[Supplier1]:[Supplier3]])))*(Table1[[#This Row],[Loc]]=Table2[Loc])","v":0}]
[null,"KS","ESP","CZE","AUT","POL","BRA","Johnson","Smith","Johnson","Riv","GD",95,{"$f":"SUMPRODUCT((1)*(Table1[[#This Row],[Desc1]:[Desc5]]=TRANSPOSE(Table2[[Desc1]:[Desc5]])))*SUMPRODUCT(--(Table1[[#This Row],[Supplier1]:[Supplier3]]=TRANSPOSE(Table2[[Supplier1]:[Supplier3]])))*(Table1[[#This Row],[Loc]]=Table2[Loc])","v":0}]
[null,"MD","AUT","EGY","EGY","GER","ESP","Smith","Jones","Smith","Tug","KV",30,{"$f":"SUMPRODUCT((1)*(Table1[[#This Row],[Desc1]:[Desc5]]=TRANSPOSE(Table2[[Desc1]:[Desc5]])))*SUMPRODUCT(--(Table1[[#This Row],[Supplier1]:[Supplier3]]=TRANSPOSE(Table2[[Supplier1]:[Supplier3]])))*(Table1[[#This Row],[Loc]]=Table2[Loc])","v":0}]
[null,"MD","ITA","GRE","CZE","GBR","GER","Johnson","Brown","Williams","Mok","JJ",50,{"$f":"SUMPRODUCT((1)*(Table1[[#This Row],[Desc1]:[Desc5]]=TRANSPOSE(Table2[[Desc1]:[Desc5]])))*SUMPRODUCT(--(Table1[[#This Row],[Supplier1]:[Supplier3]]=TRANSPOSE(Table2[[Supplier1]:[Supplier3]])))*(Table1[[#This Row],[Loc]]=Table2[Loc])","v":0}]
[null,"MD","ISR","SUI","AUS","GBR","ARG","Smith","Williams","Brown","Ten","VL",21,{"$f":"SUMPRODUCT((1)*(Table1[[#This Row],[Desc1]:[Desc5]]=TRANSPOSE(Table2[[Desc1]:[Desc5]])))*SUMPRODUCT(--(Table1[[#This Row],[Supplier1]:[Supplier3]]=TRANSPOSE(Table2[[Supplier1]:[Supplier3]])))*(Table1[[#This Row],[Loc]]=Table2[Loc])","v":0}]
[null,"ME","CHI","HUN","NOR","JPN","GBR","Johnson","Smith","Brown","Sih","WK",43,{"$f":"SUMPRODUCT((1)*(Table1[[#This Row],[Desc1]:[Desc5]]=TRANSPOSE(Table2[[Desc1]:[Desc5]])))*SUMPRODUCT(--(Table1[[#This Row],[Supplier1]:[Supplier3]]=TRANSPOSE(Table2[[Supplier1]:[Supplier3]])))*(Table1[[#This Row],[Loc]]=Table2[Loc])","v":0}]
[null,"KS","RSA","BEL","BEL","JPN","CZE","Johnson","Jones","Johnson","Sid","FL",49,{"$f":"SUMPRODUCT((1)*(Table1[[#This Row],[Desc1]:[Desc5]]=TRANSPOSE(Table2[[Desc1]:[Desc5]])))*SUMPRODUCT(--(Table1[[#This Row],[Supplier1]:[Supplier3]]=TRANSPOSE(Table2[[Supplier1]:[Supplier3]])))*(Table1[[#This Row],[Loc]]=Table2[Loc])","v":0}]
[null,"KS","EGY","CHN","IRI","DEN","JPN","Williams","Brown","Williams","Reb","FF",56,{"$f":"SUMPRODUCT((1)*(Table1[[#This Row],[Desc1]:[Desc5]]=TRANSPOSE(Table2[[Desc1]:[Desc5]])))*SUMPRODUCT(--(Table1[[#This Row],[Supplier1]:[Supplier3]]=TRANSPOSE(Table2[[Supplier1]:[Supplier3]])))*(Table1[[#This Row],[Loc]]=Table2[Loc])","v":0}]
[null,"KS","GRE","CZE","AUS","ARG","SWE","Brown","Johnson","Smith","Jic","LJ",86,{"$f":"SUMPRODUCT((1)*(Table1[[#This Row],[Desc1]:[Desc5]]=TRANSPOSE(Table2[[Desc1]:[Desc5]])))*SUMPRODUCT(--(Table1[[#This Row],[Supplier1]:[Supplier3]]=TRANSPOSE(Table2[[Supplier1]:[Supplier3]])))*(Table1[[#This Row],[Loc]]=Table2[Loc])","v":0}]
[null,"KY","ARG","CZE","GRE","BRA","IND","Brown","Smith","Smith","Bem","HD",59,{"$f":"SUMPRODUCT((1)*(Table1[[#This Row],[Desc1]:[Desc5]]=TRANSPOSE(Table2[[Desc1]:[Desc5]])))*SUMPRODUCT(--(Table1[[#This Row],[Supplier1]:[Supplier3]]=TRANSPOSE(Table2[[Supplier1]:[Supplier3]])))*(Table1[[#This Row],[Loc]]=Table2[Loc])","v":0}]
[null,"ME","CAN","POL","POR","FIN","ARG","Jones","Brown","Jones","Nic","JL",39,{"$f":"SUMPRODUCT((1)*(Table1[[#This Row],[Desc1]:[Desc5]]=TRANSPOSE(Table2[[Desc1]:[Desc5]])))*SUMPRODUCT(--(Table1[[#This Row],[Supplier1]:[Supplier3]]=TRANSPOSE(Table2[[Supplier1]:[Supplier3]])))*(Table1[[#This Row],[Loc]]=Table2[Loc])","v":0}]
[null,"ME","GER","GRE","GER","ISR","CHI","Williams","Brown","Williams","Sur","FT",81,{"$f":"SUMPRODUCT((1)*(Table1[[#This Row],[Desc1]:[Desc5]]=TRANSPOSE(Table2[[Desc1]:[Desc5]])))*SUMPRODUCT(--(Table1[[#This Row],[Supplier1]:[Supplier3]]=TRANSPOSE(Table2[[Supplier1]:[Supplier3]])))*(Table1[[#This Row],[Loc]]=Table2[Loc])","v":0}]
[null,"MD","JPN","JPN","SUI","CHI","GER","Williams","Brown","Brown","Mas","SL",88,{"$f":"SUMPRODUCT((1)*(Table1[[#This Row],[Desc1]:[Desc5]]=TRANSPOSE(Table2[[Desc1]:[Desc5]])))*SUMPRODUCT(--(Table1[[#This Row],[Supplier1]:[Supplier3]]=TRANSPOSE(Table2[[Supplier1]:[Supplier3]])))*(Table1[[#This Row],[Loc]]=Table2[Loc])","v":0}]
[null,"KY","POL","POR","EGY","HUN","SWE","Johnson","Brown","Johnson","Mer","WF",39,{"$f":"SUMPRODUCT((1)*(Table1[[#This Row],[Desc1]:[Desc5]]=TRANSPOSE(Table2[[Desc1]:[Desc5]])))*SUMPRODUCT(--(Table1[[#This Row],[Supplier1]:[Supplier3]]=TRANSPOSE(Table2[[Supplier1]:[Supplier3]])))*(Table1[[#This Row],[Loc]]=Table2[Loc])","v":0}]
[null,"MD","NED","BRA","EGY","SWE","NOR","Brown","Williams","Smith","Vum","RB",12,{"$f":"SUMPRODUCT((1)*(Table1[[#This Row],[Desc1]:[Desc5]]=TRANSPOSE(Table2[[Desc1]:[Desc5]])))*SUMPRODUCT(--(Table1[[#This Row],[Supplier1]:[Supplier3]]=TRANSPOSE(Table2[[Supplier1]:[Supplier3]])))*(Table1[[#This Row],[Loc]]=Table2[Loc])","v":0}]
[null,"KY","GRE","SWE","BEL","SUI","AUS","Williams","Jones","Jones","Toh","VK",68,{"$f":"SUMPRODUCT((1)*(Table1[[#This Row],[Desc1]:[Desc5]]=TRANSPOSE(Table2[[Desc1]:[Desc5]])))*SUMPRODUCT(--(Table1[[#This Row],[Supplier1]:[Supplier3]]=TRANSPOSE(Table2[[Supplier1]:[Supplier3]])))*(Table1[[#This Row],[Loc]]=Table2[Loc])","v":0}]
[null,"MA","RUS","DEN","EGY","HUN","BEL","Williams","Williams","Johnson","Fop","HT",23,{"$f":"SUMPRODUCT((1)*(Table1[[#This Row],[Desc1]:[Desc5]]=TRANSPOSE(Table2[[Desc1]:[Desc5]])))*SUMPRODUCT(--(Table1[[#This Row],[Supplier1]:[Supplier3]]=TRANSPOSE(Table2[[Supplier1]:[Supplier3]])))*(Table1[[#This Row],[Loc]]=Table2[Loc])","v":0}]
[null,"MD","GRE","JPN","ISL","JPN","BRA","Smith","Johnson","Jones","Fuk","GG",63,{"$f":"SUMPRODUCT((1)*(Table1[[#This Row],[Desc1]:[Desc5]]=TRANSPOSE(Table2[[Desc1]:[Desc5]])))*SUMPRODUCT(--(Table1[[#This Row],[Supplier1]:[Supplier3]]=TRANSPOSE(Table2[[Supplier1]:[Supplier3]])))*(Table1[[#This Row],[Loc]]=Table2[Loc])","v":0}]
[null,"MA","DEN","CHI","BRA","SUI","CHI","Brown","Brown","Williams","Wic","HJ",44,{"$f":"SUMPRODUCT((1)*(Table1[[#This Row],[Desc1]:[Desc5]]=TRANSPOSE(Table2[[Desc1]:[Desc5]])))*SUMPRODUCT(--(Table1[[#This Row],[Supplier1]:[Supplier3]]=TRANSPOSE(Table2[[Supplier1]:[Supplier3]])))*(Table1[[#This Row],[Loc]]=Table2[Loc])","v":0}]
[null,"MA","JPN","GBR","POR","CZE","ITA","Williams","Johnson","Jones","Bip","DB",49,{"$f":"SUMPRODUCT((1)*(Table1[[#This Row],[Desc1]:[Desc5]]=TRANSPOSE(Table2[[Desc1]:[Desc5]])))*SUMPRODUCT(--(Table1[[#This Row],[Supplier1]:[Supplier3]]=TRANSPOSE(Table2[[Supplier1]:[Supplier3]])))*(Table1[[#This Row],[Loc]]=Table2[Loc])","v":0}]
[null,"MA","FRA","AUT","IND","ITA","GRE","Johnson","Jones","Brown","Der","HL",67,{"$f":"SUMPRODUCT((1)*(Table1[[#This Row],[Desc1]:[Desc5]]=TRANSPOSE(Table2[[Desc1]:[Desc5]])))*SUMPRODUCT(--(Table1[[#This Row],[Supplier1]:[Supplier3]]=TRANSPOSE(Table2[[Supplier1]:[Supplier3]])))*(Table1[[#This Row],[Loc]]=Table2[Loc])","v":0}]
[null,"KY","INA","DEN","AUS","ISR","GER","Smith","Johnson","Williams","Kek","PF",91,{"$f":"SUMPRODUCT((1)*(Table1[[#This Row],[Desc1]:[Desc5]]=TRANSPOSE(Table2[[Desc1]:[Desc5]])))*SUMPRODUCT(--(Table1[[#This Row],[Supplier1]:[Supplier3]]=TRANSPOSE(Table2[[Supplier1]:[Supplier3]])))*(Table1[[#This Row],[Loc]]=Table2[Loc])","v":0}]
[null,"MD","RUS","ESP","AUT","ARG","NOR","Johnson","Smith","Brown","Kum","BV",82,{"$f":"SUMPRODUCT((1)*(Table1[[#This Row],[Desc1]:[Desc5]]=TRANSPOSE(Table2[[Desc1]:[Desc5]])))*SUMPRODUCT(--(Table1[[#This Row],[Supplier1]:[Supplier3]]=TRANSPOSE(Table2[[Supplier1]:[Supplier3]])))*(Table1[[#This Row],[Loc]]=Table2[Loc])","v":0}]
[null,"MA","BRA","JPN","RSA","ESP","INA","Smith","Johnson","Brown","Geg","HV",38,{"$f":"SUMPRODUCT((1)*(Table1[[#This Row],[Desc1]:[Desc5]]=TRANSPOSE(Table2[[Desc1]:[Desc5]])))*SUMPRODUCT(--(Table1[[#This Row],[Supplier1]:[Supplier3]]=TRANSPOSE(Table2[[Supplier1]:[Supplier3]])))*(Table1[[#This Row],[Loc]]=Table2[Loc])","v":0}]
[null,"MA","CHN","FIN","ARG","POL","SUI","Williams","Smith","Smith","Pas","HH",23,{"$f":"SUMPRODUCT((1)*(Table1[[#This Row],[Desc1]:[Desc5]]=TRANSPOSE(Table2[[Desc1]:[Desc5]])))*SUMPRODUCT(--(Table1[[#This Row],[Supplier1]:[Supplier3]]=TRANSPOSE(Table2[[Supplier1]:[Supplier3]])))*(Table1[[#This Row],[Loc]]=Table2[Loc])","v":0}]
[null,"LA","RUS","DEN","NOR","NOR","NED","Brown","Williams","Brown","Tof","SS",14,{"$f":"SUMPRODUCT((1)*(Table1[[#This Row],[Desc1]:[Desc5]]=TRANSPOSE(Table2[[Desc1]:[Desc5]])))*SUMPRODUCT(--(Table1[[#This Row],[Supplier1]:[Supplier3]]=TRANSPOSE(Table2[[Supplier1]:[Supplier3]])))*(Table1[[#This Row],[Loc]]=Table2[Loc])","v":0}]
[null,"LA","GBR","MEX","CHN","IRI","FRA","Brown","Brown","Johnson","Deh","TR",68,{"$f":"SUMPRODUCT((1)*(Table1[[#This Row],[Desc1]:[Desc5]]=TRANSPOSE(Table2[[Desc1]:[Desc5]])))*SUMPRODUCT(--(Table1[[#This Row],[Supplier1]:[Supplier3]]=TRANSPOSE(Table2[[Supplier1]:[Supplier3]])))*(Table1[[#This Row],[Loc]]=Table2[Loc])","v":2}]
[null,"ME","HUN","DEN","CZE","RSA","INA","Smith","Smith","Johnson","Hag","DP",94,{"$f":"SUMPRODUCT((1)*(Table1[[#This Row],[Desc1]:[Desc5]]=TRANSPOSE(Table2[[Desc1]:[Desc5]])))*SUMPRODUCT(--(Table1[[#This Row],[Supplier1]:[Supplier3]]=TRANSPOSE(Table2[[Supplier1]:[Supplier3]])))*(Table1[[#This Row],[Loc]]=Table2[Loc])","v":0}]
[null,"LA","CHN","CZE","DEN","NED","CHI","Smith","Johnson","Smith","Kur","GF",11,{"$f":"SUMPRODUCT((1)*(Table1[[#This Row],[Desc1]:[Desc5]]=TRANSPOSE(Table2[[Desc1]:[Desc5]])))*SUMPRODUCT(--(Table1[[#This Row],[Supplier1]:[Supplier3]]=TRANSPOSE(Table2[[Supplier1]:[Supplier3]])))*(Table1[[#This Row],[Loc]]=Table2[Loc])","v":2}]
[null,"MD","POR","SUI","EGY","EGY","AUS","Brown","Williams","Brown","Vat","VW",97,{"$f":"SUMPRODUCT((1)*(Table1[[#This Row],[Desc1]:[Desc5]]=TRANSPOSE(Table2[[Desc1]:[Desc5]])))*SUMPRODUCT(--(Table1[[#This Row],[Supplier1]:[Supplier3]]=TRANSPOSE(Table2[[Supplier1]:[Supplier3]])))*(Table1[[#This Row],[Loc]]=Table2[Loc])","v":0}]
[null,"KY","CHN","FRA","CAN","GRE","POR","Brown","Johnson","Jones","Naf","SM",67,{"$f":"SUMPRODUCT((1)*(Table1[[#This Row],[Desc1]:[Desc5]]=TRANSPOSE(Table2[[Desc1]:[Desc5]])))*SUMPRODUCT(--(Table1[[#This Row],[Supplier1]:[Supplier3]]=TRANSPOSE(Table2[[Supplier1]:[Supplier3]])))*(Table1[[#This Row],[Loc]]=Table2[Loc])","v":0}]
[null,"KS","POL","JPN","ISL","MEX","POL","Jones","Smith","Brown","Fos","KV",56,{"$f":"SUMPRODUCT((1)*(Table1[[#This Row],[Desc1]:[Desc5]]=TRANSPOSE(Table2[[Desc1]:[Desc5]])))*SUMPRODUCT(--(Table1[[#This Row],[Supplier1]:[Supplier3]]=TRANSPOSE(Table2[[Supplier1]:[Supplier3]])))*(Table1[[#This Row],[Loc]]=Table2[Loc])","v":0}]
[null,"MA","FRA","AUS","INA","SUI","CZE","Brown","Williams","Smith","Sib","DS",71,{"$f":"SUMPRODUCT((1)*(Table1[[#This Row],[Desc1]:[Desc5]]=TRANSPOSE(Table2[[Desc1]:[Desc5]])))*SUMPRODUCT(--(Table1[[#This Row],[Supplier1]:[Supplier3]]=TRANSPOSE(Table2[[Supplier1]:[Supplier3]])))*(Table1[[#This Row],[Loc]]=Table2[Loc])","v":0}]
[null,"ME","ESP","RSA","IND","CZE","ISL","Johnson","Jones","Johnson","Geh","JP",45,{"$f":"SUMPRODUCT((1)*(Table1[[#This Row],[Desc1]:[Desc5]]=TRANSPOSE(Table2[[Desc1]:[Desc5]])))*SUMPRODUCT(--(Table1[[#This Row],[Supplier1]:[Supplier3]]=TRANSPOSE(Table2[[Supplier1]:[Supplier3]])))*(Table1[[#This Row],[Loc]]=Table2[Loc])","v":0}]
[null,"ME","EGY","MEX","POL","ARG","POL","Brown","Johnson","Williams","Jiv","KF",81,{"$f":"SUMPRODUCT((1)*(Table1[[#This Row],[Desc1]:[Desc5]]=TRANSPOSE(Table2[[Desc1]:[Desc5]])))*SUMPRODUCT(--(Table1[[#This Row],[Supplier1]:[Supplier3]]=TRANSPOSE(Table2[[Supplier1]:[Supplier3]])))*(Table1[[#This Row],[Loc]]=Table2[Loc])","v":0}]
[null,"ME","CZE","CHI","SWE","INA","INA","Smith","Brown","Jones","Ted","FN",84,{"$f":"SUMPRODUCT((1)*(Table1[[#This Row],[Desc1]:[Desc5]]=TRANSPOSE(Table2[[Desc1]:[Desc5]])))*SUMPRODUCT(--(Table1[[#This Row],[Supplier1]:[Supplier3]]=TRANSPOSE(Table2[[Supplier1]:[Supplier3]])))*(Table1[[#This Row],[Loc]]=Table2[Loc])","v":0}]
[null,"LA","ITA","IRI","IRL","BEL","GER","Jones","Jones","Brown","Dup","HD",26,{"$f":"SUMPRODUCT((1)*(Table1[[#This Row],[Desc1]:[Desc5]]=TRANSPOSE(Table2[[Desc1]:[Desc5]])))*SUMPRODUCT(--(Table1[[#This Row],[Supplier1]:[Supplier3]]=TRANSPOSE(Table2[[Supplier1]:[Supplier3]])))*(Table1[[#This Row],[Loc]]=Table2[Loc])","v":0}]
[null,"LA","IRI","DEN","ARG","HUN","SWE","Williams","Jones","Jones","Jef","RH",34,{"$f":"SUMPRODUCT((1)*(Table1[[#This Row],[Desc1]:[Desc5]]=TRANSPOSE(Table2[[Desc1]:[Desc5]])))*SUMPRODUCT(--(Table1[[#This Row],[Supplier1]:[Supplier3]]=TRANSPOSE(Table2[[Supplier1]:[Supplier3]])))*(Table1[[#This Row],[Loc]]=Table2[Loc])","v":0}]
[null,"MA","EGY","IND","ISR","FIN","GER","Brown","Jones","Brown","Fem","SR",72,{"$f":"SUMPRODUCT((1)*(Table1[[#This Row],[Desc1]:[Desc5]]=TRANSPOSE(Table2[[Desc1]:[Desc5]])))*SUMPRODUCT(--(Table1[[#This Row],[Supplier1]:[Supplier3]]=TRANSPOSE(Table2[[Supplier1]:[Supplier3]])))*(Table1[[#This Row],[Loc]]=Table2[Loc])","v":0}]
[null,"MA","NED","AUS","GBR","JPN","RUS","Jones","Williams","Johnson","Sen","MW",93,{"$f":"SUMPRODUCT((1)*(Table1[[#This Row],[Desc1]:[Desc5]]=TRANSPOSE(Table2[[Desc1]:[Desc5]])))*SUMPRODUCT(--(Table1[[#This Row],[Supplier1]:[Supplier3]]=TRANSPOSE(Table2[[Supplier1]:[Supplier3]])))*(Table1[[#This Row],[Loc]]=Table2[Loc])","v":0}]
[null,"MA","GER","CZE","NOR","RSA","CZE","Jones","Johnson","Brown","Mif","MW",33,{"$f":"SUMPRODUCT((1)*(Table1[[#This Row],[Desc1]:[Desc5]]=TRANSPOSE(Table2[[Desc1]:[Desc5]])))*SUMPRODUCT(--(Table1[[#This Row],[Supplier1]:[Supplier3]]=TRANSPOSE(Table2[[Supplier1]:[Supplier3]])))*(Table1[[#This Row],[Loc]]=Table2[Loc])","v":0}]
[null,"MA","MEX","AUT","CAN","BEL","ISR","Jones","Smith","Brown","Sed","FF",35,{"$f":"SUMPRODUCT((1)*(Table1[[#This Row],[Desc1]:[Desc5]]=TRANSPOSE(Table2[[Desc1]:[Desc5]])))*SUMPRODUCT(--(Table1[[#This Row],[Supplier1]:[Supplier3]]=TRANSPOSE(Table2[[Supplier1]:[Supplier3]])))*(Table1[[#This Row],[Loc]]=Table2[Loc])","v":0}]

{"sheet":"Crit_N_Out","index":1,"n_rows":18,"n_cols":19,"rows_kept":18,"cut":false,"hidden":false,"merged":[]}
[]
[]
[null,"Table4"]
[null,"SP"]
[null,"<>0"]
[]
[null,"Table2",null,null,null,null,null,null,null,null,null,null,null,"Table3"]
[null,"Loc","Desc","Desc1","Desc2","Desc3","Desc4","Desc5","Supplier","Supplier1","Supplier2","Supplier3",null,"Loc","Project","Group","Section","Desc","Supplier"]
[null,"LA",{"$f":"Table2[Desc1]&\" \"&INDEX(LoK,RANDBETWEEN(1,14))&INDEX(vowel,RANDBETWEEN(1,5))&INDEX(LoK,RANDBETWEEN(1,14))&\" \"&Table2[Desc2]&\" \"&INDEX(LoK,RANDBETWEEN(1,14))&INDEX(vowel,RANDBETWEEN(1,5))&INDEX(LoK,RANDBETWEEN(1,14))&\" \"&Table2[Desc3]&\" \"&INDEX(LoK,RANDBETWEEN(1,14))&INDEX(vowel,RANDBETWEEN(1,5))&INDEX(LoK,RANDBETWEEN(1,14))&\" \"&Table2[Desc4]&\" \"&INDEX(LoK,RANDBETWEEN(1,14))&INDEX(vowel,RANDBETWEEN(1,5))&INDEX(LoK,RANDBETWEEN(1,14))&\" \"&Table2[Desc5]","v":"ARG dov MEX rar CZE rur  kip "},"ARG","MEX","CZE",null,null,{"$f":"Table2[Supplier1]&\" \"&INDEX(LoK,RANDBETWEEN(1,14))&INDEX(vowel,RANDBETWEEN(1,5))&INDEX(LoK,RANDBETWEEN(1,14))&\" \"&Table2[Supplier2]&\" \"&INDEX(LoK,RANDBETWEEN(1,14))&INDEX(vowel,RANDBETWEEN(1,5))&INDEX(LoK,RANDBETWEEN(1,14))&\" \"&Table2[Supplier3]","v":"Smith rag Brown guf "},"Smith","Brown",null,null,"LA","Duh","SR",39,"ARG saf MEX coc CZE mup  din ","Smith sec Brown mip "]
[null,null,null,null,null,null,null,null,null,null,null,null,null,"LA","Hof","NV",69,"ARG saf MEX coc CZE mup  din ","Smith sec Brown mip "]
[null,null,null,null,null,null,null,null,null,null,null,null,null,"LA","Gis","JV",69,"ARG saf MEX coc CZE mup  din ","Smith sec Brown mip "]
[null,null,null,null,null,null,null,null,null,null,null,null,null,"LA","Nes","DD",16,"ARG saf MEX coc CZE mup  din ","Smith sec Brown mip "]
[null,null,null,null,null,null,null,null,null,null,null,null,null,"LA","Duv","MD",22,"ARG saf MEX coc CZE mup  din ","Smith sec Brown mip "]
[null,null,null,null,null,null,null,null,null,null,null,null,null,"LA","Gub","VB",28,"ARG saf MEX coc CZE mup  din ","Smith sec Brown mip "]
[null,null,null,null,null,null,null,null,null,null,null,null,null,"LA","Rog","KP",51,"ARG saf MEX coc CZE mup  din ","Smith sec Brown mip "]
[null,null,null,null,null,null,null,null,null,null,null,null,null,"LA","Meb","LH",41,"ARG saf MEX coc CZE mup  din ","Smith sec Brown mip "]
[null,null,null,null,null,null,null,null,null,null,null,null,null,"LA","Deh","TR",68,"ARG saf MEX coc CZE mup  din ","Smith sec Brown mip "]
[null,null,null,null,null,null,null,null,null,null,null,null,null,"LA","Kur","GF",11,"ARG saf MEX coc CZE mup  din ","Smith sec Brown mip "]